Workbook

Sheet JPK-Nagłówek
H1: JPK_V7M (2) | L1: wersja obowiązująca od 1 stycznia 2022
D2: =DataWytworzenia() -> 2024-08-19T12:03:33
C4: Cel złożenia: | D4: 1 | J4: NIP: | K4: 7011174664 | L4: 2
C6: Rok/Miesiąc: | D6: 2024 | E6: / | F6: 7 | J6: Pełna nazwa podmiotu: | K6: Rhenus Digital Workforce Sp. zo.o.
C7: Cel złożenia: | D7: =IF(RodzajDokumentu=1,1,2) -> 1
C8: Kwartał: | D8: =Quarter(Miesiac) -> 3 | J8: Nazwisko: | M8: Imię: | Q8: Data urodzenia:
J10: Email: | K10: monika.czerwonka@rhenus.com
C11: Kod urzędu skarbowego: | D11: 1433 | J11: Telefon:
B15: Pola obowiązkowe:
B16: Pola opcjonalne:

Sheet JPK-Sprzedaż
E1: Zestawienie dla danych od dnia: | F1: =IF(OR(Rok = "", Miesiac = ""),"",DATE(Rok,Miesiac,1)) -> 2024-07-01 | H1: Liczba wierszy: | I1: =C4 + 0.00000000001 -> 69 | J1: =IF(J7="","",SUBTOTAL(5,J7:J1048576)) -> 2024-07-03
E2: do dnia: | F2: =IF(OR(Rok = "", Miesiac = ""),"",DATE(Rok,Miesiac+1,1)-1) -> 2024-07-31 | H2: Podatek należny: | I2: =SUM(S_16,S_18,S_20,S_24,S_26,S_28,S_30,S_32,S_33,S_34) - SUM(S_35,S_36)+0.00000000001 -> 182813.95 | J2: =IF(J7="","",SUBTOTAL(4,J7:J1048576)) -> 2024-07-31 | BD2: kolumny znaczników: wpisz w komórkę "1", aby zaznaczyć (Excel wyświetli w takim miejscu słowo "tak"), w przeciwnym razie pozostaw puste
H3: =IF(RodzajDokumentu = 4,"--------- SEKCJA POMINIĘTA W TEJ KOREKCIE ---------","") ->  | AT3: znaczniki dotyczące dostawy i świadczenia usług | BI3: znaczniki dotyczące procedur | BM3: inne
C4: =SUBTOTAL(3,C7:C1048576) -> 69 | L4: =SUBTOTAL(9,L7:L1048575) -> 0 | M4: 213136.35 | N4: 182223.76 | O4: 0 | P4: 0 | Q4: 0 | R4: 0 | S4: 0 | T4: 0 | U4: =SUBTOTAL(9,U7:U1048575) -> 696232.47 | V4: =SUBTOTAL(9,V7:V1048575) -> 160133.48 | W4: 0 | X4: 0 | Y4: 0 | Z4: 0 | AA4: 0 | AB4: 0 | AC4: 1214.71 | AD4: 279.4 | AE4: 97395.85 | AF4: 22401.07 | AG4: 0 | AH4: 0 | AI4: 0 | AJ4: 0 | AK4: 0 | AL4: 0 | AM4: 0
L5: =SUM(L$7:L$1048576) - SUMIF($H7:$H$1048576,"FP",L$7:L$1048576) -> 0 | M5: =SUM(M$7:M$1048576) - SUMIF($H7:$H$1048576,"FP",M$7:M$1048576) -> 213136.35 | N5: =SUM(N$7:N$1048576) - SUMIF($H7:$H$1048576,"FP",N$7:N$1048576) -> 182223.76 | O5: =SUM(O$7:O$1048576) - SUMIF($H7:$H$1048576,"FP",O$7:O$1048576) -> 0 | P5: =SUM(P$7:P$1048576) - SUMIF($H7:$H$1048576,"FP",P$7:P$1048576) -> 0 | Q5: =SUM(Q$7:Q$1048576) - SUMIF($H7:$H$1048576,"FP",Q$7:Q$1048576) -> 0 | R5: =SUM(R$7:R$1048576) - SUMIF($H7:$H$1048576,"FP",R$7:R$1048576) -> 0 | S5: =SUM(S$7:S$1048576) - SUMIF($H7:$H$1048576,"FP",S$7:S$1048576) -> 0 | T5: =SUM(T$7:T$1048576) - SUMIF($H7:$H$1048576,"FP",T$7:T$1048576) -> 0 | U5: =SUM(U$7:U$1048576) - SUMIF($H7:$H$1048576,"FP",U$7:U$1048576) -> 696232.47 | V5: =SUM(V$7:V$1048576) - SUMIF($H7:$H$1048576,"FP",V$7:V$1048576) -> 160133.48 | W5: =SUM(W$7:W$1048576) - SUMIF($H7:$H$1048576,"FP",W$7:W$1048576) -> 0 | X5: =SUM(X$7:X$1048576) - SUMIF($H7:$H$1048576,"FP",X$7:X$1048576) -> 0 | Y5: =SUM(Y$7:Y$1048576) - SUMIF($H7:$H$1048576,"FP",Y$7:Y$1048576) -> 0 | Z5: =SUM(Z$7:Z$1048576) - SUMIF($H7:$H$1048576,"FP",Z$7:Z$1048576) -> 0 | AA5: =SUM(AA$7:AA$1048576) - SUMIF($H7:$H$1048576,"FP",AA$7:AA$1048576) -> 0 | AB5: =SUM(AB$7:AB$1048576) - SUMIF($H7:$H$1048576,"FP",AB$7:AB$1048576) -> 0 | AC5: =SUM(AC$7:AC$1048576) - SUMIF($H7:$H$1048576,"FP",AC$7:AC$1048576) -> 1214.71 | AD5: =SUM(AD$7:AD$1048576) - SUMIF($H7:$H$1048576,"FP",AD$7:AD$1048576) -> 279.4 | AE5: =SUM(AE$7:AE$1048576) - SUMIF($H7:$H$1048576,"FP",AE$7:AE$1048576) -> 97395.85 | AF5: =SUM(AF$7:AF$1048576) - SUMIF($H7:$H$1048576,"FP",AF$7:AF$1048576) -> 22401.07 | AG5: =SUM(AG$7:AG$1048576) - SUMIF($H7:$H$1048576,"FP",AG$7:AG$1048576) -> 0 | AH5: =SUM(AH$7:AH$1048576) - SUMIF($H7:$H$1048576,"FP",AH$7:AH$1048576) -> 0 | AI5: =SUM(AI$7:AI$1048576) - SUMIF($H7:$H$1048576,"FP",AI$7:AI$1048576) -> 0 | AJ5: =SUM(AJ$7:AJ$1048576) - SUMIF($H7:$H$1048576,"FP",AJ$7:AJ$1048576) -> 0 | AK5: =SUM(AK$7:AK$1048576) - SUMIF($H7:$H$1048576,"FP",AK$7:AK$1048576) -> 0 | AL5: =SUM(AL$7:AL$1048576) - SUMIF($H7:$H$1048576,"FP",AL$7:AL$1048576) -> 0 | AM5: =SUM(AM$7:AM$1048576) - SUMIF($H7:$H$1048576,"FP",AM$7:AM$1048576) -> 0
C6: Lp. | D6: Błąd | E6: Kod kraju | F6: NIP kontrahenta | G6: Nazwa kontrahenta | H6: Typ dokumentu | I6: Dowód sprzedaży | J6: Data wystawienia | K6: Data sprzedaży | L6: K 10 | M6: K 11 | N6: K 12 | O6: K 13 | P6: K 14 | Q6: K 15 | R6: K 16 | S6: K 17 | T6: K 18 | U6: K 19 | V6: K 20 | W6: K 21 | X6: K 22 | Y6: K 23 | Z6: K 24 | AA6: K 25 | AB6: K 26 | AC6: K 27 | AD6: K 28 | AE6: K 29 | AF6: K 30 | AG6: K 31 | AH6: K 32 | AI6: K 33 | AJ6: K 34 | AK6: K 35 | AL6: K 36 | AM6: Sprzedaż VAT Marża | AN6: GTU 01 | AO6: GTU 02 | AP6: GTU 03 | AQ6: GTU 04 | AR6: GTU 05 | AS6: GTU 06 | AT6: GTU 07 | AU6: GTU 08 | AV6: GTU 09 | AW6: GTU 10 | AX6: GTU 11 | AY6: GTU 12 | AZ6: GTU 13 | BA6: WSTO EE | BB6: IED | BC6: TP | BD6: TT WNT | BE6: TT D | BF6: MR T | BG6: MR UZ | BH6: I 42 | BI6: I 63 | BJ6: B SPV | BK6: B SPV Dostawa | BL6: B MPV Prowizja | BM6: Korekta podstawy opodatkowania | BN6: Termin płatności | BO6: Data zapłaty
C7: 1 | E7: CH | F7: E110310075 | G7: Contargo AG | I7: K5 | J7: 2024-07-12 | K7: 2024-07-12 | L7: 0 | M7: 16373.67 | N7: 0 | O7: 0 | P7: 0 | Q7: 0 | R7: 0 | S7: 0 | T7: 0 | U7: 0 | V7: 0 | W7: 0 | X7: 0 | Y7: 0 | Z7: 0 | AA7: 0 | AB7: 0 | AC7: 0 | AD7: 0 | AE7: 0 | AF7: 0 | AG7: 0 | AH7: 0 | AI7: 0 | AJ7: 0 | AK7: 0 | AL7: 0 | AM7: 0 | BC7: 1
C8: 2 | E8: CH | F8: E110310075 | G8: Contargo AG | I8: K6 | J8: 2024-07-15 | K8: 2024-07-15 | L8: 0 | M8: 5132.47 | N8: 0 | O8: 0 | P8: 0 | Q8: 0 | R8: 0 | S8: 0 | T8: 0 | U8: 0 | V8: 0 | W8: 0 | X8: 0 | Y8: 0 | Z8: 0 | AA8: 0 | AB8: 0 | AC8: 0 | AD8: 0 | AE8: 0 | AF8: 0 | AG8: 0 | AH8: 0 | AI8: 0 | AJ8: 0 | AK8: 0 | AL8: 0 | AM8: 0 | BC8: 1
C9: 3 | E9: DE | F9: 813870828 | G9: Contargo GmbH & Co. KG | I9: 3/07/2024 | J9: 2024-07-12 | K9: 2024-07-12 | L9: 0 | M9: -16373.67 | N9: -16373.67 | O9: 0 | P9: 0 | Q9: 0 | R9: 0 | S9: 0 | T9: 0 | U9: 0 | V9: 0 | W9: 0 | X9: 0 | Y9: 0 | Z9: 0 | AA9: 0 | AB9: 0 | AC9: 0 | AD9: 0 | AE9: 0 | AF9: 0 | AG9: 0 | AH9: 0 | AI9: 0 | AJ9: 0 | AK9: 0 | AL9: 0 | AM9: 0 | BC9: 1
C10: 4 | E10: DE | F10: 813870828 | G10: Contargo GmbH & Co. KG | I10: 4/07/2024 | J10: 2024-07-15 | K10: 2024-07-15 | L10: 0 | M10: -6426.37 | N10: -6426.37 | O10: 0 | P10: 0 | Q10: 0 | R10: 0 | S10: 0 | T10: 0 | U10: 0 | V10: 0 | W10: 0 | X10: 0 | Y10: 0 | Z10: 0 | AA10: 0 | AB10: 0 | AC10: 0 | AD10: 0 | AE10: 0 | AF10: 0 | AG10: 0 | AH10: 0 | AI10: 0 | AJ10: 0 | AK10: 0 | AL10: 0 | AM10: 0 | BC10: 1
C11: 5 | E11: AU | F11: brak | G11: Atlassian Pty Ltd | I11: IN-EU-000-671-63 | J11: 2024-07-03 | K11: 2024-07-04 | L11: 0 | M11: 0 | N11: 0 | O11: 0 | P11: 0 | Q11: 0 | R11: 0 | S11: 0 | T11: 0 | U11: 0 | V11: 0 | W11: 0 | X11: 0 | Y11: 0 | Z11: 0 | AA11: 0 | AB11: 0 | AC11: 356.11 | AD11: 81.92 | AE11: 0 | AF11: 0 | AG11: 0 | AH11: 0 | AI11: 0 | AJ11: 0 | AK11: 0 | AL11: 0 | AM11: 0
C12: 6 | E12: IE | F12: 3336483DH | G12: Slack Technologies Limited | I12: SBIE-6492279 | J12: 2024-07-14 | K12: 2024-07-16 | L12: 0 | M12: 0 | N12: 0 | O12: 0 | P12: 0 | Q12: 0 | R12: 0 | S12: 0 | T12: 0 | U12: 0 | V12: 0 | W12: 0 | X12: 0 | Y12: 0 | Z12: 0 | AA12: 0 | AB12: 0 | AC12: 0 | AD12: 0 | AE12: 251.66 | AF12: 57.89 | AG12: 0 | AH12: 0 | AI12: 0 | AJ12: 0 | AK12: 0 | AL12: 0 | AM12: 0
C13: 7 | E13: IL | F13: brak | G13: Monday.com Ltd | I13: IB240100744003 | J13: 2024-07-21 | K13: 2024-07-23 | L13: 0 | M13: 0 | N13: 0 | O13: 0 | P13: 0 | Q13: 0 | R13: 0 | S13: 0 | T13: 0 | U13: 0 | V13: 0 | W13: 0 | X13: 0 | Y13: 0 | Z13: 0 | AA13: 0 | AB13: 0 | AC13: 858.6 | AD13: 197.48 | AE13: 0 | AF13: 0 | AG13: 0 | AH13: 0 | AI13: 0 | AJ13: 0 | AK13: 0 | AL13: 0 | AM13: 0
C14: 8 | E14: DE | F14: 233196983 | G14: Rhenus Assets & Services | I14: 9200252270 | J14: 2024-07-31 | K14: 2024-07-31 | L14: 0 | M14: 0 | N14: 0 | O14: 0 | P14: 0 | Q14: 0 | R14: 0 | S14: 0 | T14: 0 | U14: 0 | V14: 0 | W14: 0 | X14: 0 | Y14: 0 | Z14: 0 | AA14: 0 | AB14: 0 | AC14: 0 | AD14: 0 | AE14: 871.3 | AF14: 200.39 | AG14: 0 | AH14: 0 | AI14: 0 | AJ14: 0 | AK14: 0 | AL14: 0 | AM14: 0 | BC14: 1
C15: 9 | E15: DE | F15: 233196983 | G15: Rhenus Assets & Services | I15: 9200252752 | J15: 2024-07-31 | K15: 2024-07-31 | L15: 0 | M15: 0 | N15: 0 | O15: 0 | P15: 0 | Q15: 0 | R15: 0 | S15: 0 | T15: 0 | U15: 0 | V15: 0 | W15: 0 | X15: 0 | Y15: 0 | Z15: 0 | AA15: 0 | AB15: 0 | AC15: 0 | AD15: 0 | AE15: 2820.44 | AF15: 648.72 | AG15: 0 | AH15: 0 | AI15: 0 | AJ15: 0 | AK15: 0 | AL15: 0 | AM15: 0 | BC15: 1
C16: 10 | E16: RO | F16: 34737997 | G16: UiPath SRL | I16: UIP-RO-80745 | J16: 2024-07-15 | K16: 2024-07-31 | L16: 0 | M16: 0 | N16: 0 | O16: 0 | P16: 0 | Q16: 0 | R16: 0 | S16: 0 | T16: 0 | U16: 0 | V16: 0 | W16: 0 | X16: 0 | Y16: 0 | Z16: 0 | AA16: 0 | AB16: 0 | AC16: 0 | AD16: 0 | AE16: 36741.25 | AF16: 8450.49 | AG16: 0 | AH16: 0 | AI16: 0 | AJ16: 0 | AK16: 0 | AL16: 0 | AM16: 0
C17: 11 | E17: RO | F17: 34737997 | G17: UiPath SRL | I17: UIP-RO-80699 | J17: 2024-07-12 | K17: 2024-07-31 | L17: 0 | M17: 0 | N17: 0 | O17: 0 | P17: 0 | Q17: 0 | R17: 0 | S17: 0 | T17: 0 | U17: 0 | V17: 0 | W17: 0 | X17: 0 | Y17: 0 | Z17: 0 | AA17: 0 | AB17: 0 | AC17: 0 | AD17: 0 | AE17: 56711.2 | AF17: 13043.58 | AG17: 0 | AH17: 0 | AI17: 0 | AJ17: 0 | AK17: 0 | AL17: 0 | AM17: 0
C18: 12 | E18: PL | F18: 5270103824 | G18: Schenker SP. Z O.O. | I18: K4 | J18: 2024-07-08 | K18: 2024-07-08 | L18: 0 | M18: 0 | N18: 0 | O18: 0 | P18: 0 | Q18: 0 | R18: 0 | S18: 0 | T18: 0 | U18: -1967.7 | V18: -452.57 | W18: 0 | X18: 0 | Y18: 0 | Z18: 0 | AA18: 0 | AB18: 0 | AC18: 0 | AD18: 0 | AE18: 0 | AF18: 0 | AG18: 0 | AH18: 0 | AI18: 0 | AJ18: 0 | AK18: 0 | AL18: 0 | AM18: 0
C19: 13 | E19: DE | F19: 813870828 | G19: Contargo GmbH & Co. KG | I19: 55/07/2024 | J19: 2024-07-31 | K19: 2024-07-31 | L19: 0 | M19: 3033.43 | N19: 3033.43 | O19: 0 | P19: 0 | Q19: 0 | R19: 0 | S19: 0 | T19: 0 | U19: 0 | V19: 0 | W19: 0 | X19: 0 | Y19: 0 | Z19: 0 | AA19: 0 | AB19: 0 | AC19: 0 | AD19: 0 | AE19: 0 | AF19: 0 | AG19: 0 | AH19: 0 | AI19: 0 | AJ19: 0 | AK19: 0 | AL19: 0 | AM19: 0 | BC19: 1
C20: 14 | E20: PL | F20: 5741781080 | G20: Zakład Produkcji Spożywczej Jamar | I20: 54/07/2024 | J20: 2024-07-31 | K20: 2024-07-31 | L20: 0 | M20: 0 | N20: 0 | O20: 0 | P20: 0 | Q20: 0 | R20: 0 | S20: 0 | T20: 0 | U20: 8252.64 | V20: 1898.12 | W20: 0 | X20: 0 | Y20: 0 | Z20: 0 | AA20: 0 | AB20: 0 | AC20: 0 | AD20: 0 | AE20: 0 | AF20: 0 | AG20: 0 | AH20: 0 | AI20: 0 | AJ20: 0 | AK20: 0 | AL20: 0 | AM20: 0
C21: 15 | E21: PL | F21: 5260009816 | G21: Akademia Finansów i Biznesu Vistula | I21: 53/07/2024 | J21: 2024-07-31 | K21: 2024-07-31 | L21: 0 | M21: 0 | N21: 0 | O21: 0 | P21: 0 | Q21: 0 | R21: 0 | S21: 0 | T21: 0 | U21: 8269.1 | V21: 1901.89 | W21: 0 | X21: 0 | Y21: 0 | Z21: 0 | AA21: 0 | AB21: 0 | AC21: 0 | AD21: 0 | AE21: 0 | AF21: 0 | AG21: 0 | AH21: 0 | AI21: 0 | AJ21: 0 | AK21: 0 | AL21: 0 | AM21: 0
C22: 16 | E22: PL | F22: 2220791536 | G22: GELDBACH POLSKA SP. Z O.O. | I22: 52/07/2024 | J22: 2024-07-31 | K22: 2024-07-31 | L22: 0 | M22: 0 | N22: 0 | O22: 0 | P22: 0 | Q22: 0 | R22: 0 | S22: 0 | T22: 0 | U22: 1722.37 | V22: 396.14 | W22: 0 | X22: 0 | Y22: 0 | Z22: 0 | AA22: 0 | AB22: 0 | AC22: 0 | AD22: 0 | AE22: 0 | AF22: 0 | AG22: 0 | AH22: 0 | AI22: 0 | AJ22: 0 | AK22: 0 | AL22: 0 | AM22: 0
C23: 17 | E23: GB | F23: brak | G23: Rhenus Logistics Ltd. | I23: 51/07/2024 | J23: 2024-07-31 | K23: 2024-07-31 | L23: 0 | M23: 1296.06 | N23: 0 | O23: 0 | P23: 0 | Q23: 0 | R23: 0 | S23: 0 | T23: 0 | U23: 0 | V23: 0 | W23: 0 | X23: 0 | Y23: 0 | Z23: 0 | AA23: 0 | AB23: 0 | AC23: 0 | AD23: 0 | AE23: 0 | AF23: 0 | AG23: 0 | AH23: 0 | AI23: 0 | AJ23: 0 | AK23: 0 | AL23: 0 | AM23: 0 | BC23: 1
C24: 18 | E24: GB | F24: brak | G24: Rhenus Logistics Ltd. | I24: 50/07/2024 | J24: 2024-07-31 | K24: 2024-07-31 | L24: 0 | M24: 3338.91 | N24: 0 | O24: 0 | P24: 0 | Q24: 0 | R24: 0 | S24: 0 | T24: 0 | U24: 0 | V24: 0 | W24: 0 | X24: 0 | Y24: 0 | Z24: 0 | AA24: 0 | AB24: 0 | AC24: 0 | AD24: 0 | AE24: 0 | AF24: 0 | AG24: 0 | AH24: 0 | AI24: 0 | AJ24: 0 | AK24: 0 | AL24: 0 | AM24: 0 | BC24: 1
C25: 19 | E25: ES | F25: B28542751 | G25: Saria Bio-Industries España SL | I25: 49/07/2024 | J25: 2024-07-31 | K25: 2024-07-31 | L25: 0 | M25: 3320.5 | N25: 3320.5 | O25: 0 | P25: 0 | Q25: 0 | R25: 0 | S25: 0 | T25: 0 | U25: 0 | V25: 0 | W25: 0 | X25: 0 | Y25: 0 | Z25: 0 | AA25: 0 | AB25: 0 | AC25: 0 | AD25: 0 | AE25: 0 | AF25: 0 | AG25: 0 | AH25: 0 | AI25: 0 | AJ25: 0 | AK25: 0 | AL25: 0 | AM25: 0 | BC25: 1
C26: 20 | E26: PL | F26: 7740006061 | G26: SARIA POLSKA Sp. z o.o. | I26: 48/07/2024 | J26: 2024-07-31 | K26: 2024-07-31 | L26: 0 | M26: 0 | N26: 0 | O26: 0 | P26: 0 | Q26: 0 | R26: 0 | S26: 0 | T26: 0 | U26: 2142.25 | V26: 492.72 | W26: 0 | X26: 0 | Y26: 0 | Z26: 0 | AA26: 0 | AB26: 0 | AC26: 0 | AD26: 0 | AE26: 0 | AF26: 0 | AG26: 0 | AH26: 0 | AI26: 0 | AJ26: 0 | AK26: 0 | AL26: 0 | AM26: 0 | BC26: 1
C27: 21 | E27: CA | F27: brak | G27: Rhenus Logistics Canada Limited | I27: 47/07/2024 | J27: 2024-07-31 | K27: 2024-07-31 | L27: 0 | M27: 5078.63 | N27: 0 | O27: 0 | P27: 0 | Q27: 0 | R27: 0 | S27: 0 | T27: 0 | U27: 0 | V27: 0 | W27: 0 | X27: 0 | Y27: 0 | Z27: 0 | AA27: 0 | AB27: 0 | AC27: 0 | AD27: 0 | AE27: 0 | AF27: 0 | AG27: 0 | AH27: 0 | AI27: 0 | AJ27: 0 | AK27: 0 | AL27: 0 | AM27: 0 | BC27: 1
C28: 22 | E28: PL | F28: 5130268790 | G28: BAYWA R.E. SOLAR SYSTEMS | I28: 46/07/2024 | J28: 2024-07-31 | K28: 2024-07-31 | L28: 0 | M28: 0 | N28: 0 | O28: 0 | P28: 0 | Q28: 0 | R28: 0 | S28: 0 | T28: 0 | U28: 2356.48 | V28: 541.99 | W28: 0 | X28: 0 | Y28: 0 | Z28: 0 | AA28: 0 | AB28: 0 | AC28: 0 | AD28: 0 | AE28: 0 | AF28: 0 | AG28: 0 | AH28: 0 | AI28: 0 | AJ28: 0 | AK28: 0 | AL28: 0 | AM28: 0
C29: 23 | E29: PL | F29: 5262262838 | G29: Unum Życie TUiR S.A. | I29: 45/07/2024 | J29: 2024-07-31 | K29: 2024-07-31 | L29: 0 | M29: 0 | N29: 0 | O29: 0 | P29: 0 | Q29: 0 | R29: 0 | S29: 0 | T29: 0 | U29: 8005.59 | V29: 1841.31 | W29: 0 | X29: 0 | Y29: 0 | Z29: 0 | AA29: 0 | AB29: 0 | AC29: 0 | AD29: 0 | AE29: 0 | AF29: 0 | AG29: 0 | AH29: 0 | AI29: 0 | AJ29: 0 | AK29: 0 | AL29: 0 | AM29: 0
C30: 24 | E30: DE | F30: 814993204 | G30: TSR Recycling GmbH & Co. KG | I30: 44/07/2024 | J30: 2024-07-31 | K30: 2024-07-31 | L30: 0 | M30: 2592.13 | N30: 2592.13 | O30: 0 | P30: 0 | Q30: 0 | R30: 0 | S30: 0 | T30: 0 | U30: 0 | V30: 0 | W30: 0 | X30: 0 | Y30: 0 | Z30: 0 | AA30: 0 | AB30: 0 | AC30: 0 | AD30: 0 | AE30: 0 | AF30: 0 | AG30: 0 | AH30: 0 | AI30: 0 | AJ30: 0 | AK30: 0 | AL30: 0 | AM30: 0 | BC30: 1
C31: 25 | E31: PL | F31: 9721258673 | G31: NU DELTA SP. Z O.O. | I31: 43/07/2024 | J31: 2024-07-31 | K31: 2024-07-31 | L31: 0 | M31: 0 | N31: 0 | O31: 0 | P31: 0 | Q31: 0 | R31: 0 | S31: 0 | T31: 0 | U31: 2400 | V31: 552 | W31: 0 | X31: 0 | Y31: 0 | Z31: 0 | AA31: 0 | AB31: 0 | AC31: 0 | AD31: 0 | AE31: 0 | AF31: 0 | AG31: 0 | AH31: 0 | AI31: 0 | AJ31: 0 | AK31: 0 | AL31: 0 | AM31: 0
C32: 26 | E32: PL | F32: 9591530986 | G32: TELBRIDGE Sp. z o.o. Sp. K. | I32: 42/07/2024 | J32: 2024-07-31 | K32: 2024-07-31 | L32: 0 | M32: 0 | N32: 0 | O32: 0 | P32: 0 | Q32: 0 | R32: 0 | S32: 0 | T32: 0 | U32: 1071.13 | V32: 246.36 | W32: 0 | X32: 0 | Y32: 0 | Z32: 0 | AA32: 0 | AB32: 0 | AC32: 0 | AD32: 0 | AE32: 0 | AF32: 0 | AG32: 0 | AH32: 0 | AI32: 0 | AJ32: 0 | AK32: 0 | AL32: 0 | AM32: 0
C33: 27 | E33: PL | F33: 9591530986 | G33: TELBRIDGE Sp. z o.o. Sp. K. | I33: 41/07/2024 | J33: 2024-07-31 | K33: 2024-07-31 | L33: 0 | M33: 0 | N33: 0 | O33: 0 | P33: 0 | Q33: 0 | R33: 0 | S33: 0 | T33: 0 | U33: 60439.49 | V33: 13901.08 | W33: 0 | X33: 0 | Y33: 0 | Z33: 0 | AA33: 0 | AB33: 0 | AC33: 0 | AD33: 0 | AE33: 0 | AF33: 0 | AG33: 0 | AH33: 0 | AI33: 0 | AJ33: 0 | AK33: 0 | AL33: 0 | AM33: 0
C34: 28 | E34: PL | F34: 5220014461 | G34: ROCHE POLSKA SP. Z O.O. | I34: 40/07/2024 | J34: 2024-07-31 | K34: 2024-07-31 | L34: 0 | M34: 0 | N34: 0 | O34: 0 | P34: 0 | Q34: 0 | R34: 0 | S34: 0 | T34: 0 | U34: 2816 | V34: 647.68 | W34: 0 | X34: 0 | Y34: 0 | Z34: 0 | AA34: 0 | AB34: 0 | AC34: 0 | AD34: 0 | AE34: 0 | AF34: 0 | AG34: 0 | AH34: 0 | AI34: 0 | AJ34: 0 | AK34: 0 | AL34: 0 | AM34: 0
C35: 29 | E35: PL | F35: 8520404334 | G35: Rhenus Port Logistics Sp.z o.o. | I35: 39/07/2024 | J35: 2024-07-31 | K35: 2024-07-31 | L35: 0 | M35: 0 | N35: 0 | O35: 0 | P35: 0 | Q35: 0 | R35: 0 | S35: 0 | T35: 0 | U35: 1413.89 | V35: 325.19 | W35: 0 | X35: 0 | Y35: 0 | Z35: 0 | AA35: 0 | AB35: 0 | AC35: 0 | AD35: 0 | AE35: 0 | AF35: 0 | AG35: 0 | AH35: 0 | AI35: 0 | AJ35: 0 | AK35: 0 | AL35: 0 | AM35: 0 | BC35: 1
C36: 30 | E36: LT | F36: 201455113 | G36: Rhenus Logistics UAB | I36: 38/07/2024 | J36: 2024-07-31 | K36: 2024-07-31 | L36: 0 | M36: 1178.24 | N36: 1178.24 | O36: 0 | P36: 0 | Q36: 0 | R36: 0 | S36: 0 | T36: 0 | U36: 0 | V36: 0 | W36: 0 | X36: 0 | Y36: 0 | Z36: 0 | AA36: 0 | AB36: 0 | AC36: 0 | AD36: 0 | AE36: 0 | AF36: 0 | AG36: 0 | AH36: 0 | AI36: 0 | AJ36: 0 | AK36: 0 | AL36: 0 | AM36: 0 | BC36: 1
C37: 31 | E37: FR | F37: 81481212561 | G37: Rhenus Logistics France S.A.S. | I37: 37/07/2024 | J37: 2024-07-31 | K37: 2024-07-31 | L37: 0 | M37: 5527.44 | N37: 5527.44 | O37: 0 | P37: 0 | Q37: 0 | R37: 0 | S37: 0 | T37: 0 | U37: 0 | V37: 0 | W37: 0 | X37: 0 | Y37: 0 | Z37: 0 | AA37: 0 | AB37: 0 | AC37: 0 | AD37: 0 | AE37: 0 | AF37: 0 | AG37: 0 | AH37: 0 | AI37: 0 | AJ37: 0 | AK37: 0 | AL37: 0 | AM37: 0 | BC37: 1
C38: 32 | E38: FR | F38: 04728202730 | G38: Rhenus Logistics Alsace S.A.S. | I38: 36/07/2024 | J38: 2024-07-31 | K38: 2024-07-31 | L38: 0 | M38: 1296.06 | N38: 1296.06 | O38: 0 | P38: 0 | Q38: 0 | R38: 0 | S38: 0 | T38: 0 | U38: 0 | V38: 0 | W38: 0 | X38: 0 | Y38: 0 | Z38: 0 | AA38: 0 | AB38: 0 | AC38: 0 | AD38: 0 | AE38: 0 | AF38: 0 | AG38: 0 | AH38: 0 | AI38: 0 | AJ38: 0 | AK38: 0 | AL38: 0 | AM38: 0 | BC38: 1
C39: 33 | E39: NL | F39: 804989989B01 | G39: Rhenus Warehousing Solutions | I39: 35/07/2024 | J39: 2024-07-31 | K39: 2024-07-31 | L39: 0 | M39: 11833.27 | N39: 11833.27 | O39: 0 | P39: 0 | Q39: 0 | R39: 0 | S39: 0 | T39: 0 | U39: 0 | V39: 0 | W39: 0 | X39: 0 | Y39: 0 | Z39: 0 | AA39: 0 | AB39: 0 | AC39: 0 | AD39: 0 | AE39: 0 | AF39: 0 | AG39: 0 | AH39: 0 | AI39: 0 | AJ39: 0 | AK39: 0 | AL39: 0 | AM39: 0 | BC39: 1
C40: 34 | E40: NL | F40: 818344349B02 | G40: Rhenus Assets & Services B.V. | I40: 34/07/2024 | J40: 2024-07-31 | K40: 2024-07-31 | L40: 0 | M40: 8930.57 | N40: 8930.57 | O40: 0 | P40: 0 | Q40: 0 | R40: 0 | S40: 0 | T40: 0 | U40: 0 | V40: 0 | W40: 0 | X40: 0 | Y40: 0 | Z40: 0 | AA40: 0 | AB40: 0 | AC40: 0 | AD40: 0 | AE40: 0 | AF40: 0 | AG40: 0 | AH40: 0 | AI40: 0 | AJ40: 0 | AK40: 0 | AL40: 0 | AM40: 0 | BC40: 1
C41: 35 | E41: CH | F41: E116326560 | G41: Rhenus Logistics AG | I41: 33/07/2024 | J41: 2024-07-31 | K41: 2024-07-31 | L41: 0 | M41: 2592.13 | N41: 0 | O41: 0 | P41: 0 | Q41: 0 | R41: 0 | S41: 0 | T41: 0 | U41: 0 | V41: 0 | W41: 0 | X41: 0 | Y41: 0 | Z41: 0 | AA41: 0 | AB41: 0 | AC41: 0 | AD41: 0 | AE41: 0 | AF41: 0 | AG41: 0 | AH41: 0 | AI41: 0 | AJ41: 0 | AK41: 0 | AL41: 0 | AM41: 0 | BC41: 1
C42: 36 | E42: DE | F42: 244833407 | G42: REMONDIS Trade and Sales GmbH | I42: 32/07/2024 | J42: 2024-07-31 | K42: 2024-07-31 | L42: 0 | M42: 2739.43 | N42: 2739.43 | O42: 0 | P42: 0 | Q42: 0 | R42: 0 | S42: 0 | T42: 0 | U42: 0 | V42: 0 | W42: 0 | X42: 0 | Y42: 0 | Z42: 0 | AA42: 0 | AB42: 0 | AC42: 0 | AD42: 0 | AE42: 0 | AF42: 0 | AG42: 0 | AH42: 0 | AI42: 0 | AJ42: 0 | AK42: 0 | AL42: 0 | AM42: 0 | BC42: 1
C43: 37 | E43: PL | F43: 6262478042 | G43: REMONDIS MEDISON | I43: 31/07/2024 | J43: 2024-07-31 | K43: 2024-07-31 | L43: 0 | M43: 0 | N43: 0 | O43: 0 | P43: 0 | Q43: 0 | R43: 0 | S43: 0 | T43: 0 | U43: 2799.88 | V43: 643.97 | W43: 0 | X43: 0 | Y43: 0 | Z43: 0 | AA43: 0 | AB43: 0 | AC43: 0 | AD43: 0 | AE43: 0 | AF43: 0 | AG43: 0 | AH43: 0 | AI43: 0 | AJ43: 0 | AK43: 0 | AL43: 0 | AM43: 0 | BC43: 1
C44: 38 | E44: PL | F44: 1070027625 | G44: PFR TOWARZYSTWO FUNDUSZY | I44: 30/07/2024 | J44: 2024-07-31 | K44: 2024-07-31 | L44: 0 | M44: 0 | N44: 0 | O44: 0 | P44: 0 | Q44: 0 | R44: 0 | S44: 0 | T44: 0 | U44: 4975.85 | V44: 1144.43 | W44: 0 | X44: 0 | Y44: 0 | Z44: 0 | AA44: 0 | AB44: 0 | AC44: 0 | AD44: 0 | AE44: 0 | AF44: 0 | AG44: 0 | AH44: 0 | AI44: 0 | AJ44: 0 | AK44: 0 | AL44: 0 | AM44: 0
C45: 39 | E45: PL | F45: 5213614786 | G45: eTravel Spółka Akcyjna | I45: 29/07/2024 | J45: 2024-07-31 | K45: 2024-07-31 | L45: 0 | M45: 0 | N45: 0 | O45: 0 | P45: 0 | Q45: 0 | R45: 0 | S45: 0 | T45: 0 | U45: 4000 | V45: 920 | W45: 0 | X45: 0 | Y45: 0 | Z45: 0 | AA45: 0 | AB45: 0 | AC45: 0 | AD45: 0 | AE45: 0 | AF45: 0 | AG45: 0 | AH45: 0 | AI45: 0 | AJ45: 0 | AK45: 0 | AL45: 0 | AM45: 0
C46: 40 | E46: PL | F46: 5260204110 | G46: DPD POLSKA SP. Z O.O. | I46: 28/07/2024 | J46: 2024-07-31 | K46: 2024-07-31 | L46: 0 | M46: 0 | N46: 0 | O46: 0 | P46: 0 | Q46: 0 | R46: 0 | S46: 0 | T46: 0 | U46: 19184 | V46: 4412.32 | W46: 0 | X46: 0 | Y46: 0 | Z46: 0 | AA46: 0 | AB46: 0 | AC46: 0 | AD46: 0 | AE46: 0 | AF46: 0 | AG46: 0 | AH46: 0 | AI46: 0 | AJ46: 0 | AK46: 0 | AL46: 0 | AM46: 0
C47: 41 | E47: DE | F47: 813983342 | G47: Contargo Rhein-Neckar GmbH | I47: 27/07/2024 | J47: 2024-07-31 | K47: 2024-07-31 | L47: 0 | M47: 771.21 | N47: 771.21 | O47: 0 | P47: 0 | Q47: 0 | R47: 0 | S47: 0 | T47: 0 | U47: 0 | V47: 0 | W47: 0 | X47: 0 | Y47: 0 | Z47: 0 | AA47: 0 | AB47: 0 | AC47: 0 | AD47: 0 | AE47: 0 | AF47: 0 | AG47: 0 | AH47: 0 | AI47: 0 | AJ47: 0 | AK47: 0 | AL47: 0 | AM47: 0 | BC47: 1
C48: 42 | E48: DE | F48: 813534781 | G48: DIT Duisburg Intermodal | I48: 26/07/2024 | J48: 2024-07-31 | K48: 2024-07-31 | L48: 0 | M48: 13600.64 | N48: 13600.64 | O48: 0 | P48: 0 | Q48: 0 | R48: 0 | S48: 0 | T48: 0 | U48: 0 | V48: 0 | W48: 0 | X48: 0 | Y48: 0 | Z48: 0 | AA48: 0 | AB48: 0 | AC48: 0 | AD48: 0 | AE48: 0 | AF48: 0 | AG48: 0 | AH48: 0 | AI48: 0 | AJ48: 0 | AK48: 0 | AL48: 0 | AM48: 0 | BC48: 1
C49: 43 | E49: CH | F49: E106829262 | G49: Cargologic AG | I49: 25/07/2024 | J49: 2024-07-31 | K49: 2024-07-31 | L49: 0 | M49: 11635.12 | N49: 0 | O49: 0 | P49: 0 | Q49: 0 | R49: 0 | S49: 0 | T49: 0 | U49: 0 | V49: 0 | W49: 0 | X49: 0 | Y49: 0 | Z49: 0 | AA49: 0 | AB49: 0 | AC49: 0 | AD49: 0 | AE49: 0 | AF49: 0 | AG49: 0 | AH49: 0 | AI49: 0 | AJ49: 0 | AK49: 0 | AL49: 0 | AM49: 0 | BC49: 1
C50: 44 | E50: DE | F50: 340305967 | G50: IU Group N.V. | I50: 24/07/2024 | J50: 2024-07-31 | K50: 2024-07-31 | L50: 0 | M50: 12467.9 | N50: 12467.9 | O50: 0 | P50: 0 | Q50: 0 | R50: 0 | S50: 0 | T50: 0 | U50: 0 | V50: 0 | W50: 0 | X50: 0 | Y50: 0 | Z50: 0 | AA50: 0 | AB50: 0 | AC50: 0 | AD50: 0 | AE50: 0 | AF50: 0 | AG50: 0 | AH50: 0 | AI50: 0 | AJ50: 0 | AK50: 0 | AL50: 0 | AM50: 0
C51: 45 | E51: PL | F51: 5210415750 | G51: AGRANA FRUIT POLSKA SP. Z O.O. | I51: 23/07/2024 | J51: 2024-07-31 | K51: 2024-07-31 | L51: 0 | M51: 0 | N51: 0 | O51: 0 | P51: 0 | Q51: 0 | R51: 0 | S51: 0 | T51: 0 | U51: 5904.6 | V51: 1358.06 | W51: 0 | X51: 0 | Y51: 0 | Z51: 0 | AA51: 0 | AB51: 0 | AC51: 0 | AD51: 0 | AE51: 0 | AF51: 0 | AG51: 0 | AH51: 0 | AI51: 0 | AJ51: 0 | AK51: 0 | AL51: 0 | AM51: 0
C52: 46 | E52: PL | F52: 5270103824 | G52: Schenker SP. Z O.O. | I52: 22/07/2024 | J52: 2024-07-31 | K52: 2024-07-31 | L52: 0 | M52: 0 | N52: 0 | O52: 0 | P52: 0 | Q52: 0 | R52: 0 | S52: 0 | T52: 0 | U52: 64326.34 | V52: 14795.06 | W52: 0 | X52: 0 | Y52: 0 | Z52: 0 | AA52: 0 | AB52: 0 | AC52: 0 | AD52: 0 | AE52: 0 | AF52: 0 | AG52: 0 | AH52: 0 | AI52: 0 | AJ52: 0 | AK52: 0 | AL52: 0 | AM52: 0
C53: 47 | E53: PL | F53: 9730421440 | G53: UNIMOT ENERGIA I GAZ SP. Z O.O. | I53: 21/07/2024 | J53: 2024-07-31 | K53: 2024-07-31 | L53: 0 | M53: 0 | N53: 0 | O53: 0 | P53: 0 | Q53: 0 | R53: 0 | S53: 0 | T53: 0 | U53: 1532.92 | V53: 352.58 | W53: 0 | X53: 0 | Y53: 0 | Z53: 0 | AA53: 0 | AB53: 0 | AC53: 0 | AD53: 0 | AE53: 0 | AF53: 0 | AG53: 0 | AH53: 0 | AI53: 0 | AJ53: 0 | AK53: 0 | AL53: 0 | AM53: 0
C54: 48 | E54: PL | F54: 1132818376 | G54: PEPSICO CONSULTING POLSKA | I54: 20/07/2024 | J54: 2024-07-31 | K54: 2024-07-31 | L54: 0 | M54: 0 | N54: 0 | O54: 0 | P54: 0 | Q54: 0 | R54: 0 | S54: 0 | T54: 0 | U54: 1000 | V54: 230 | W54: 0 | X54: 0 | Y54: 0 | Z54: 0 | AA54: 0 | AB54: 0 | AC54: 0 | AD54: 0 | AE54: 0 | AF54: 0 | AG54: 0 | AH54: 0 | AI54: 0 | AJ54: 0 | AK54: 0 | AL54: 0 | AM54: 0
C55: 49 | E55: PL | F55: 9691582008 | G55: HL DISTRIBUTION CENTER EUROPE | I55: 19/07/2024 | J55: 2024-07-31 | K55: 2024-07-31 | L55: 0 | M55: 0 | N55: 0 | O55: 0 | P55: 0 | Q55: 0 | R55: 0 | S55: 0 | T55: 0 | U55: 957.42 | V55: 220.21 | W55: 0 | X55: 0 | Y55: 0 | Z55: 0 | AA55: 0 | AB55: 0 | AC55: 0 | AD55: 0 | AE55: 0 | AF55: 0 | AG55: 0 | AH55: 0 | AI55: 0 | AJ55: 0 | AK55: 0 | AL55: 0 | AM55: 0
C56: 50 | E56: NL | F56: 807598574B01 | G56: HL DISPLAY NEDERLAND B.V. | I56: 18/07/2024 | J56: 2024-07-31 | K56: 2024-07-31 | L56: 0 | M56: 244.35 | N56: 244.35 | O56: 0 | P56: 0 | Q56: 0 | R56: 0 | S56: 0 | T56: 0 | U56: 0 | V56: 0 | W56: 0 | X56: 0 | Y56: 0 | Z56: 0 | AA56: 0 | AB56: 0 | AC56: 0 | AD56: 0 | AE56: 0 | AF56: 0 | AG56: 0 | AH56: 0 | AI56: 0 | AJ56: 0 | AK56: 0 | AL56: 0 | AM56: 0
C57: 51 | E57: PL | F57: 9691581569 | G57: HL DISPLAY GLIWICE SP.Z O.O. | I57: 17/07/2024 | J57: 2024-07-31 | K57: 2024-07-31 | L57: 0 | M57: 0 | N57: 0 | O57: 0 | P57: 0 | Q57: 0 | R57: 0 | S57: 0 | T57: 0 | U57: 1537.2 | V57: 353.56 | W57: 0 | X57: 0 | Y57: 0 | Z57: 0 | AA57: 0 | AB57: 0 | AC57: 0 | AD57: 0 | AE57: 0 | AF57: 0 | AG57: 0 | AH57: 0 | AI57: 0 | AJ57: 0 | AK57: 0 | AL57: 0 | AM57: 0
C58: 52 | E58: FR | F58: 40377988704 | G58: SAS H L DISPLAY FRANCE | I58: 16/07/2024 | J58: 2024-07-31 | K58: 2024-07-31 | L58: 0 | M58: 622.37 | N58: 622.37 | O58: 0 | P58: 0 | Q58: 0 | R58: 0 | S58: 0 | T58: 0 | U58: 0 | V58: 0 | W58: 0 | X58: 0 | Y58: 0 | Z58: 0 | AA58: 0 | AB58: 0 | AC58: 0 | AD58: 0 | AE58: 0 | AF58: 0 | AG58: 0 | AH58: 0 | AI58: 0 | AJ58: 0 | AK58: 0 | AL58: 0 | AM58: 0
C59: 53 | E59: PL | F59: 5222908659 | G59: FUNDACJA DKMS | I59: 15/07/2024 | J59: 2024-07-31 | K59: 2024-07-31 | L59: 0 | M59: 0 | N59: 0 | O59: 0 | P59: 0 | Q59: 0 | R59: 0 | S59: 0 | T59: 0 | U59: 42037.72 | V59: 9668.67 | W59: 0 | X59: 0 | Y59: 0 | Z59: 0 | AA59: 0 | AB59: 0 | AC59: 0 | AD59: 0 | AE59: 0 | AF59: 0 | AG59: 0 | AH59: 0 | AI59: 0 | AJ59: 0 | AK59: 0 | AL59: 0 | AM59: 0
C60: 54 | E60: DE | F60: 146887306 | G60: DKMS Group GmbH | I60: 14/07/2024 | J60: 2024-07-31 | K60: 2024-07-31 | L60: 0 | M60: 2025.93 | N60: 2025.93 | O60: 0 | P60: 0 | Q60: 0 | R60: 0 | S60: 0 | T60: 0 | U60: 0 | V60: 0 | W60: 0 | X60: 0 | Y60: 0 | Z60: 0 | AA60: 0 | AB60: 0 | AC60: 0 | AD60: 0 | AE60: 0 | AF60: 0 | AG60: 0 | AH60: 0 | AI60: 0 | AJ60: 0 | AK60: 0 | AL60: 0 | AM60: 0
C61: 55 | E61: PL | F61: 5242930691 | G61: DIGIFLOW DANKA SP. Z O.O. | I61: 13/07/2024 | J61: 2024-07-31 | K61: 2024-07-31 | L61: 0 | M61: 0 | N61: 0 | O61: 0 | P61: 0 | Q61: 0 | R61: 0 | S61: 0 | T61: 0 | U61: 389.74 | V61: 89.64 | W61: 0 | X61: 0 | Y61: 0 | Z61: 0 | AA61: 0 | AB61: 0 | AC61: 0 | AD61: 0 | AE61: 0 | AF61: 0 | AG61: 0 | AH61: 0 | AI61: 0 | AJ61: 0 | AK61: 0 | AL61: 0 | AM61: 0
C62: 56 | E62: CH | F62: E110310075 | G62: Contargo AG | I62: 12/07/2024 | J62: 2024-07-31 | K62: 2024-07-31 | L62: 0 | M62: 5808.07 | N62: 0 | O62: 0 | P62: 0 | Q62: 0 | R62: 0 | S62: 0 | T62: 0 | U62: 0 | V62: 0 | W62: 0 | X62: 0 | Y62: 0 | Z62: 0 | AA62: 0 | AB62: 0 | AC62: 0 | AD62: 0 | AE62: 0 | AF62: 0 | AG62: 0 | AH62: 0 | AI62: 0 | AJ62: 0 | AK62: 0 | AL62: 0 | AM62: 0 | BC62: 1
C63: 57 | E63: CH | F63: E106829262 | G63: Cargologic AG | I63: 11/07/2024 | J63: 2024-07-31 | K63: 2024-07-31 | L63: 0 | M63: 1163.67 | N63: 0 | O63: 0 | P63: 0 | Q63: 0 | R63: 0 | S63: 0 | T63: 0 | U63: 0 | V63: 0 | W63: 0 | X63: 0 | Y63: 0 | Z63: 0 | AA63: 0 | AB63: 0 | AC63: 0 | AD63: 0 | AE63: 0 | AF63: 0 | AG63: 0 | AH63: 0 | AI63: 0 | AJ63: 0 | AK63: 0 | AL63: 0 | AM63: 0 | BC63: 1
C64: 58 | E64: DE | F64: 340305967 | G64: IU Group N.V. | I64: 10/07/2024 | J64: 2024-07-31 | K64: 2024-07-31 | L64: 0 | M64: 170.09 | N64: 170.09 | O64: 0 | P64: 0 | Q64: 0 | R64: 0 | S64: 0 | T64: 0 | U64: 0 | V64: 0 | W64: 0 | X64: 0 | Y64: 0 | Z64: 0 | AA64: 0 | AB64: 0 | AC64: 0 | AD64: 0 | AE64: 0 | AF64: 0 | AG64: 0 | AH64: 0 | AI64: 0 | AJ64: 0 | AK64: 0 | AL64: 0 | AM64: 0
C65: 59 | E65: PL | F65: 5262685697 | G65: BOLIX S.A. | I65: 9/07/2024 | J65: 2024-07-31 | K65: 2024-07-31 | L65: 0 | M65: 0 | N65: 0 | O65: 0 | P65: 0 | Q65: 0 | R65: 0 | S65: 0 | T65: 0 | U65: 2555.25 | V65: 587.71 | W65: 0 | X65: 0 | Y65: 0 | Z65: 0 | AA65: 0 | AB65: 0 | AC65: 0 | AD65: 0 | AE65: 0 | AF65: 0 | AG65: 0 | AH65: 0 | AI65: 0 | AJ65: 0 | AK65: 0 | AL65: 0 | AM65: 0
C66: 60 | E66: PL | F66: 5251661440 | G66: Acciona Nieruchomości Sp. z o.o. | I66: 8/07/2024 | J66: 2024-07-31 | K66: 2024-07-31 | L66: 0 | M66: 0 | N66: 0 | O66: 0 | P66: 0 | Q66: 0 | R66: 0 | S66: 0 | T66: 0 | U66: 8863.43 | V66: 2038.59 | W66: 0 | X66: 0 | Y66: 0 | Z66: 0 | AA66: 0 | AB66: 0 | AC66: 0 | AD66: 0 | AE66: 0 | AF66: 0 | AG66: 0 | AH66: 0 | AI66: 0 | AJ66: 0 | AK66: 0 | AL66: 0 | AM66: 0
C67: 61 | E67: PL | F67: 5213114842 | G67: Rhenus Office Systems Poland | I67: 7/07/2024 | J67: 2024-07-31 | K67: 2024-07-31 | L67: 0 | M67: 0 | N67: 0 | O67: 0 | P67: 0 | Q67: 0 | R67: 0 | S67: 0 | T67: 0 | U67: 229067.88 | V67: 52685.6 | W67: 0 | X67: 0 | Y67: 0 | Z67: 0 | AA67: 0 | AB67: 0 | AC67: 0 | AD67: 0 | AE67: 0 | AF67: 0 | AG67: 0 | AH67: 0 | AI67: 0 | AJ67: 0 | AK67: 0 | AL67: 0 | AM67: 0 | BC67: 1
C68: 62 | E68: PL | F68: 6342834728 | G68: POLSKA GRUPA GÓRNICZA S.A. | I68: 6/07/2024 | J68: 2024-07-31 | K68: 2024-07-31 | L68: 0 | M68: 0 | N68: 0 | O68: 0 | P68: 0 | Q68: 0 | R68: 0 | S68: 0 | T68: 0 | U68: 107579 | V68: 24743.17 | W68: 0 | X68: 0 | Y68: 0 | Z68: 0 | AA68: 0 | AB68: 0 | AC68: 0 | AD68: 0 | AE68: 0 | AF68: 0 | AG68: 0 | AH68: 0 | AI68: 0 | AJ68: 0 | AK68: 0 | AL68: 0 | AM68: 0
C69: 63 | E69: CH | F69: E110310075 | G69: Contargo AG | I69: K6 | J69: 2024-07-15 | K69: 2024-07-15 | L69: 0 | M69: -5132.47 | N69: 0 | O69: 0 | P69: 0 | Q69: 0 | R69: 0 | S69: 0 | T69: 0 | U69: 0 | V69: 0 | W69: 0 | X69: 0 | Y69: 0 | Z69: 0 | AA69: 0 | AB69: 0 | AC69: 0 | AD69: 0 | AE69: 0 | AF69: 0 | AG69: 0 | AH69: 0 | AI69: 0 | AJ69: 0 | AK69: 0 | AL69: 0 | AM69: 0 | BC69: 1
C70: 64 | E70: PL | F70: 5213114842 | G70: Rhenus Office Systems Poland | I70: 5/07/2024 | J70: 2024-07-15 | K70: 2024-07-15 | L70: 0 | M70: 0 | N70: 0 | O70: 0 | P70: 0 | Q70: 0 | R70: 0 | S70: 0 | T70: 0 | U70: 102600 | V70: 23598 | W70: 0 | X70: 0 | Y70: 0 | Z70: 0 | AA70: 0 | AB70: 0 | AC70: 0 | AD70: 0 | AE70: 0 | AF70: 0 | AG70: 0 | AH70: 0 | AI70: 0 | AJ70: 0 | AK70: 0 | AL70: 0 | AM70: 0 | BC70: 1
C71: 65 | E71: DE | F71: 813870828 | G71: Contargo GmbH & Co. KG | I71: 4/07/2024 | J71: 2024-07-15 | K71: 2024-07-15 | L71: 0 | M71: 6426.37 | N71: 6426.37 | O71: 0 | P71: 0 | Q71: 0 | R71: 0 | S71: 0 | T71: 0 | U71: 0 | V71: 0 | W71: 0 | X71: 0 | Y71: 0 | Z71: 0 | AA71: 0 | AB71: 0 | AC71: 0 | AD71: 0 | AE71: 0 | AF71: 0 | AG71: 0 | AH71: 0 | AI71: 0 | AJ71: 0 | AK71: 0 | AL71: 0 | AM71: 0 | BC71: 1
C72: 66 | E72: CH | F72: E110310075 | G72: Contargo AG | I72: K5 | J72: 2024-07-12 | K72: 2024-07-12 | L72: 0 | M72: -16373.67 | N72: 0 | O72: 0 | P72: 0 | Q72: 0 | R72: 0 | S72: 0 | T72: 0 | U72: 0 | V72: 0 | W72: 0 | X72: 0 | Y72: 0 | Z72: 0 | AA72: 0 | AB72: 0 | AC72: 0 | AD72: 0 | AE72: 0 | AF72: 0 | AG72: 0 | AH72: 0 | AI72: 0 | AJ72: 0 | AK72: 0 | AL72: 0 | AM72: 0 | BC72: 1
C73: 67 | E73: DE | F73: 813870828 | G73: Contargo GmbH & Co. KG | I73: 3/07/2024 | J73: 2024-07-12 | K73: 2024-07-12 | L73: 0 | M73: 16373.67 | N73: 16373.67 | O73: 0 | P73: 0 | Q73: 0 | R73: 0 | S73: 0 | T73: 0 | U73: 0 | V73: 0 | W73: 0 | X73: 0 | Y73: 0 | Z73: 0 | AA73: 0 | AB73: 0 | AC73: 0 | AD73: 0 | AE73: 0 | AF73: 0 | AG73: 0 | AH73: 0 | AI73: 0 | AJ73: 0 | AK73: 0 | AL73: 0 | AM73: 0 | BC73: 1
C74: 68 | E74: DE | F74: 813983342 | G74: Contargo Rhein-Neckar GmbH | I74: 2/07/2024 | J74: 2024-07-12 | K74: 2024-07-12 | L74: 0 | M74: 46844.6 | N74: 46844.6 | O74: 0 | P74: 0 | Q74: 0 | R74: 0 | S74: 0 | T74: 0 | U74: 0 | V74: 0 | W74: 0 | X74: 0 | Y74: 0 | Z74: 0 | AA74: 0 | AB74: 0 | AC74: 0 | AD74: 0 | AE74: 0 | AF74: 0 | AG74: 0 | AH74: 0 | AI74: 0 | AJ74: 0 | AK74: 0 | AL74: 0 | AM74: 0 | BC74: 1
C75: 69 | E75: NL | F75: 809405313B01 | G75: Connexxion Nederland NV | I75: 1/07/2024 | J75: 2024-07-09 | K75: 2024-07-09 | L75: 0 | M75: 65025.6 | N75: 65025.6 | O75: 0 | P75: 0 | Q75: 0 | R75: 0 | S75: 0 | T75: 0 | U75: 0 | V75: 0 | W75: 0 | X75: 0 | Y75: 0 | Z75: 0 | AA75: 0 | AB75: 0 | AC75: 0 | AD75: 0 | AE75: 0 | AF75: 0 | AG75: 0 | AH75: 0 | AI75: 0 | AJ75: 0 | AK75: 0 | AL75: 0 | AM75: 0

Sheet JPK-Zakup
E1: Zestawienie dla danych od dnia: | F1: =IF(OR(Rok = "", Miesiac = ""),"",DATE(Rok,Miesiac,1)) -> 2024-07-01 | H1: Liczba wierszy: | I1: =C4+0.00000000001 -> 63 | K1: =IF(K7="","",SUBTOTAL(5,K7:K1048576)) -> 2024-07-01 | U1: znaczniki
E2: do dnia: | F2: =IF(OR(Rok = "", Miesiac = ""),"",DATE(Rok,Miesiac+1,1)-1) -> 2024-07-31 | H2: Podatek naliczony: | I2: =SUM(Z_41,Z_43,Z_44,Z_45,Z_46,Z_47) +0.00000000001 -> 109012.29 | K2: =IF(K7="","",SUBTOTAL(4,K7:K1048576)) -> 2024-07-31
H3: =IF(RodzajDokumentu = 4,"--------- SEKCJA POMINIĘTA W TEJ KOREKCIE ---------","") -> 
C4: =SUBTOTAL(3,C7:C1048576) -> 63 | L4: =SUBTOTAL(9,L7:L1048575) -> 0 | M4: =SUBTOTAL(9,M7:M1048575) -> 0 | N4: 479216.24 | O4: 109012.29 | P4: 0 | Q4: 0 | R4: 0 | S4: 0 | T4: 0
L5: =SUM(L7:L1048576) -> 0 | M5: =SUM(M7:M1048576) -> 0 | N5: 479216.24 | O5: 109012.29 | P5: 0 | Q5: 0 | R5: 0 | S5: 0
C6: Lp. | D6: Błąd | E6: Kod kraju | F6: NIP dostawcy | G6: Nazwa dostawcy | H6: Typ dokumentu | I6: Dowód zakupu | J6: Data zakupu | K6: Data wpływu | L6: K_40 | M6: K_41 | N6: K_42 | O6: K_43 | P6: K_44 | Q6: K_45 | R6: K_46 | S6: K_47 | T6: Zakup VAT Marża | U6: IMP
C7: 1 | E7: PL | F7: 5242930691 | G7: DigiFlow Danka Spółka | I7: 17/06/2024 | J7: 2024-06-30 | K7: 2024-07-01 | L7: 0 | M7: 0 | N7: 5500 | O7: 1265 | P7: 0 | Q7: 0 | R7: 0 | S7: 0 | T7: 0
C8: 2 | E8: PL | F8: 5242930691 | G8: DigiFlow Danka Spółka | I8: 18/06/2024 | J8: 2024-06-30 | K8: 2024-07-01 | L8: 0 | M8: 0 | N8: 6041.75 | O8: 1389.6 | P8: 0 | Q8: 0 | R8: 0 | S8: 0 | T8: 0
C9: 3 | E9: PL | F9: 5242930691 | G9: DigiFlow Danka Spółka | I9: 19/06/2024 | J9: 2024-06-30 | K9: 2024-07-01 | L9: 0 | M9: 0 | N9: 6534.13 | O9: 1502.85 | P9: 0 | Q9: 0 | R9: 0 | S9: 0 | T9: 0
C10: 4 | E10: PL | F10: 5242930691 | G10: DigiFlow Danka Spółka | I10: 20/06/2024 | J10: 2024-06-30 | K10: 2024-07-01 | L10: 0 | M10: 0 | N10: 5446 | O10: 1252.58 | P10: 0 | Q10: 0 | R10: 0 | S10: 0 | T10: 0
C11: 5 | E11: PL | F11: 5242930691 | G11: DigiFlow Danka Spółka | I11: 21/06/2024 | J11: 2024-06-30 | K11: 2024-07-01 | L11: 0 | M11: 0 | N11: 1874 | O11: 431.02 | P11: 0 | Q11: 0 | R11: 0 | S11: 0 | T11: 0
C12: 6 | E12: PL | F12: 5242930691 | G12: DigiFlow Danka Spółka | I12: 22/06/2024 | J12: 2024-06-30 | K12: 2024-07-01 | L12: 0 | M12: 0 | N12: 1309.96 | O12: 301.29 | P12: 0 | Q12: 0 | R12: 0 | S12: 0 | T12: 0
C13: 7 | E13: PL | F13: 5242930691 | G13: DigiFlow Danka Spółka | I13: 23/06/2024 | J13: 2024-06-30 | K13: 2024-07-01 | L13: 0 | M13: 0 | N13: 2177.5 | O13: 500.83 | P13: 0 | Q13: 0 | R13: 0 | S13: 0 | T13: 0
C14: 8 | E14: PL | F14: 5242148163 | G14: KT Solutions Marcin Kreczko | I14: 2/06/2024 | J14: 2024-06-30 | K14: 2024-07-01 | L14: 0 | M14: 0 | N14: 11000 | O14: 2530 | P14: 0 | Q14: 0 | R14: 0 | S14: 0 | T14: 0
C15: 9 | E15: PL | F15: 5242902826 | G15: Virtual Vortex Solutions | I15: 00002/06/2024 | J15: 2024-06-30 | K15: 2024-07-01 | L15: 0 | M15: 0 | N15: 10004.8 | O15: 2301.1 | P15: 0 | Q15: 0 | R15: 0 | S15: 0 | T15: 0
C16: 10 | E16: PL | F16: 1182048176 | G16: SYNTHESIT SP.Z O.O. | I16: 08/06/2024 | J16: 2024-06-30 | K16: 2024-07-01 | L16: 0 | M16: 0 | N16: 7990 | O16: 1837.7 | P16: 0 | Q16: 0 | R16: 0 | S16: 0 | T16: 0
C17: 11 | E17: PL | F17: 5213114842 | G17: Rhenus Office Systems Poland | I17: FV2422562 | J17: 2024-06-30 | K17: 2024-07-01 | L17: 0 | M17: 0 | N17: 7477.7 | O17: 1719.87 | P17: 0 | Q17: 0 | R17: 0 | S17: 0 | T17: 0
C18: 12 | E18: PL | F18: 9721258673 | G18: Nu Delta sp. z o.o. | I18: 1/07/2024 | J18: 2024-07-01 | K18: 2024-07-02 | L18: 0 | M18: 0 | N18: 43030.36 | O18: 9896.98 | P18: 0 | Q18: 0 | R18: 0 | S18: 0 | T18: 0
C19: 13 | E19: PL | F19: 5342621191 | G19: TCG PROCESS SP. Z O.O. | I19: 01/06/2024 | J19: 2024-07-01 | K19: 2024-07-01 | L19: 0 | M19: 0 | N19: 7425 | O19: 1707.75 | P19: 0 | Q19: 0 | R19: 0 | S19: 0 | T19: 0
C20: 14 | E20: PL | F20: 7822187407 | G20: CONTMAN SP. z o o. | I20: 149/2024/FVS | J20: 2024-06-28 | K20: 2024-07-01 | L20: 0 | M20: 0 | N20: 3471.72 | O20: 798.5 | P20: 0 | Q20: 0 | R20: 0 | S20: 0 | T20: 0
C21: 15 | E21: PL | F21: 5342444180 | G21: IT-REALITY MICHAŁ ADAMSKI | I21: 6/2024 | J21: 2024-06-30 | K21: 2024-07-02 | L21: 0 | M21: 0 | N21: 11000 | O21: 2530 | P21: 0 | Q21: 0 | R21: 0 | S21: 0 | T21: 0
C22: 16 | E22: PL | F22: 5221004200 | G22: UPS POLSKA SP. Z O.O. | I22: 202400317482 | J22: 2024-07-03 | K22: 2024-07-04 | L22: 0 | M22: 0 | N22: 46.92 | O22: 10.79 | P22: 0 | Q22: 0 | R22: 0 | S22: 0 | T22: 0
C23: 17 | E23: AU | F23: brak | G23: Atlassian Pty Ltd | I23: IN-EU-000-671-63 | J23: 2024-07-03 | K23: 2024-07-04 | L23: 0 | M23: 0 | N23: 356.11 | O23: 81.92 | P23: 0 | Q23: 0 | R23: 0 | S23: 0 | T23: 0
C24: 18 | E24: PL | F24: 5213114842 | G24: Rhenus Office Systems Poland | I24: FV2423409 | J24: 2024-06-30 | K24: 2024-07-04 | L24: 0 | M24: 0 | N24: 1649.22 | O24: 379.32 | P24: 0 | Q24: 0 | R24: 0 | S24: 0 | T24: 0
C25: 19 | E25: PL | F25: 1181368542 | G25: M.Mazurek i Partnerzy Radcowie | I25: 57/06/2024 | J25: 2024-06-28 | K25: 2024-07-05 | L25: 0 | M25: 0 | N25: 9180 | O25: 2111.4 | P25: 0 | Q25: 0 | R25: 0 | S25: 0 | T25: 0
C26: 20 | E26: PL | F26: 5272395073 | G26: SKANSERWIS BIS SP. Z O.O. | I26: 0202A/24/FVS | J26: 2024-07-05 | K26: 2024-07-05 | L26: 0 | M26: 0 | N26: 3141.45 | O26: 722.53 | P26: 0 | Q26: 0 | R26: 0 | S26: 0 | T26: 0
C27: 21 | E27: PL | F27: 5213114842 | G27: Rhenus Office Systems Poland | I27: FV2423444 | J27: 2024-06-30 | K27: 2024-07-05 | L27: 0 | M27: 0 | N27: 750 | O27: 172.5 | P27: 0 | Q27: 0 | R27: 0 | S27: 0 | T27: 0
C28: 22 | E28: PL | F28: 6171111301 | G28: IXELL HURTOWNIA MATERIAŁÓW | I28: 117/07/2024 | J28: 2024-07-05 | K28: 2024-07-08 | L28: 0 | M28: 0 | N28: 81.3 | O28: 18.7 | P28: 0 | Q28: 0 | R28: 0 | S28: 0 | T28: 0
C29: 23 | E29: PL | F29: 5213114842 | G29: Rhenus Office Systems Poland | I29: FV2423463 | J29: 2024-07-08 | K29: 2024-07-09 | L29: 0 | M29: 0 | N29: 539.28 | O29: 43.14 | P29: 0 | Q29: 0 | R29: 0 | S29: 0 | T29: 0
C30: 24 | E30: PL | F30: 5213114842 | G30: Rhenus Office Systems Poland | I30: FV2423461 | J30: 2024-07-08 | K30: 2024-07-09 | L30: 0 | M30: 0 | N30: -1876.77 | O30: -431.66 | P30: 0 | Q30: 0 | R30: 0 | S30: 0 | T30: 0
C31: 25 | E31: PL | F31: 5213114842 | G31: Rhenus Office Systems Poland | I31: FV2423461 | J31: 2024-07-08 | K31: 2024-07-09 | L31: 0 | M31: 0 | N31: 1876.77 | O31: 431.66 | P31: 0 | Q31: 0 | R31: 0 | S31: 0 | T31: 0
C32: 26 | E32: PL | F32: 5213114842 | G32: Rhenus Office Systems Poland | I32: FV2423464 | J32: 2024-07-08 | K32: 2024-07-09 | L32: 0 | M32: 0 | N32: 789.34 | O32: 63.15 | P32: 0 | Q32: 0 | R32: 0 | S32: 0 | T32: 0
C33: 27 | E33: PL | F33: 5213114842 | G33: Rhenus Office Systems Poland | I33: FV2421928 | J33: 2024-06-28 | K33: 2024-07-09 | L33: 0 | M33: 0 | N33: 1958.48 | O33: 450.45 | P33: 0 | Q33: 0 | R33: 0 | S33: 0 | T33: 0
C34: 28 | E34: PL | F34: 5213114842 | G34: Rhenus Office Systems Poland | I34: FV2423462 | J34: 2024-07-08 | K34: 2024-07-09 | L34: 0 | M34: 0 | N34: -1958.48 | O34: -450.45 | P34: 0 | Q34: 0 | R34: 0 | S34: 0 | T34: 0
C35: 29 | E35: PL | F35: 5213114842 | G35: Rhenus Office Systems Poland | I35: FV2423465 | J35: 2024-07-08 | K35: 2024-07-09 | L35: 0 | M35: 0 | N35: 664.2 | O35: 53.14 | P35: 0 | Q35: 0 | R35: 0 | S35: 0 | T35: 0
C36: 30 | E36: PL | F36: 6751598656 | G36: G1ANT SP. Z O.O. | I36: FV 19/2024 | J36: 2024-06-28 | K36: 2024-07-09 | L36: 0 | M36: 0 | N36: 25287.53 | O36: 5816.13 | P36: 0 | Q36: 0 | R36: 0 | S36: 0 | T36: 0
C37: 31 | E37: PL | F37: 1181368542 | G37: M.Mazurek i Partnerzy Radcowie | I37: 12/07/2024 | J37: 2024-07-10 | K37: 2024-07-10 | L37: 0 | M37: 0 | N37: 450 | O37: 103.5 | P37: 0 | Q37: 0 | R37: 0 | S37: 0 | T37: 0
C38: 32 | E38: PL | F38: 5213114842 | G38: Rhenus Office Systems Poland | I38: FV2424318 | J38: 2024-07-12 | K38: 2024-07-12 | L38: 0 | M38: 0 | N38: 23872.12 | O38: 5490.59 | P38: 0 | Q38: 0 | R38: 0 | S38: 0 | T38: 0
C39: 33 | E39: PL | F39: 5213114842 | G39: Rhenus Office Systems Poland | I39: FV2424319 | J39: 2024-07-12 | K39: 2024-07-12 | L39: 0 | M39: 0 | N39: 3692.35 | O39: 485.61 | P39: 0 | Q39: 0 | R39: 0 | S39: 0 | T39: 0
C40: 34 | E40: PL | F40: 5213114842 | G40: Rhenus Office Systems Poland | I40: FV2424337 | J40: 2024-07-12 | K40: 2024-07-15 | L40: 0 | M40: 0 | N40: 1697.83 | O40: 195.25 | P40: 0 | Q40: 0 | R40: 0 | S40: 0 | T40: 0
C41: 35 | E41: PL | F41: 5221004200 | G41: UPS POLSKA SP. Z O.O. | I41: 202400322641 | J41: 2024-07-10 | K41: 2024-07-16 | L41: 0 | M41: 0 | N41: 297.09 | O41: 68.33 | P41: 0 | Q41: 0 | R41: 0 | S41: 0 | T41: 0
C42: 36 | E42: PL | F42: 7781445202 | G42: Security Expert Sp. z o.o. | I42: 149/7/2024/FVS | J42: 2024-07-12 | K42: 2024-07-16 | L42: 0 | M42: 0 | N42: 9514 | O42: 2188.22 | P42: 0 | Q42: 0 | R42: 0 | S42: 0 | T42: 0
C43: 37 | E43: IE | F43: 3336483DH | G43: Slack Technologies Limited | I43: SBIE-6492279 | J43: 2024-07-14 | K43: 2024-07-16 | L43: 0 | M43: 0 | N43: 251.66 | O43: 57.89 | P43: 0 | Q43: 0 | R43: 0 | S43: 0 | T43: 0
C44: 38 | E44: PL | F44: 6272778780 | G44: PIER LUIGI SP. Z O.O. | I44: 81/S/07/24/FV | J44: 2024-07-16 | K44: 2024-07-17 | L44: 0 | M44: 0 | N44: 176 | O44: 40.48 | P44: 0 | Q44: 0 | R44: 0 | S44: 0 | T44: 0
C45: 39 | E45: PL | F45: 1180091073 | G45: Rhenus Warehousing Solutions Polska | I45: 9999918772024 | J45: 2024-07-17 | K45: 2024-07-17 | L45: 0 | M45: 0 | N45: 500 | O45: 115 | P45: 0 | Q45: 0 | R45: 0 | S45: 0 | T45: 0
C46: 40 | E46: IL | F46: brak | G46: Monday.com Ltd | I46: IB240100744003 | J46: 2024-07-21 | K46: 2024-07-23 | L46: 0 | M46: 0 | N46: 858.6 | O46: 197.48 | P46: 0 | Q46: 0 | R46: 0 | S46: 0 | T46: 0
C47: 41 | E47: PL | F47: 5221004200 | G47: UPS POLSKA SP. Z O.O. | I47: 202400333539 | J47: 2024-07-24 | K47: 2024-07-29 | L47: 0 | M47: 0 | N47: 43.99 | O47: 10.12 | P47: 0 | Q47: 0 | R47: 0 | S47: 0 | T47: 0
C48: 42 | E48: PL | F48: 1230716949 | G48: HEXON II JAROSLAW PIELAK-TRALEWICZ | I48: 3430/2024 | J48: 2024-07-25 | K48: 2024-07-29 | L48: 0 | M48: 0 | N48: 952.21 | O48: 219.01 | P48: 0 | Q48: 0 | R48: 0 | S48: 0 | T48: 0
C49: 43 | E49: PL | F49: 5252246542 | G49: MINIT POLSKA SP.Z O.O. | I49: W108100 | J49: 2024-07-25 | K49: 2024-07-29 | L49: 0 | M49: 0 | N49: 40.65 | O49: 4.67 | P49: 0 | Q49: 0 | R49: 0 | S49: 0 | T49: 0
C50: 44 | E50: PL | F50: 5213114842 | G50: Rhenus Office Systems Poland | I50: FV2425502 | J50: 2024-07-29 | K50: 2024-07-29 | L50: 0 | M50: 0 | N50: 3798.45 | O50: 873.64 | P50: 0 | Q50: 0 | R50: 0 | S50: 0 | T50: 0
C51: 45 | E51: PL | F51: 8561164306 | G51: AZ.pl Sp. z o.o. | I51: 2024/0022238 | J51: 2024-07-26 | K51: 2024-07-29 | L51: 0 | M51: 0 | N51: 136 | O51: 31.28 | P51: 0 | Q51: 0 | R51: 0 | S51: 0 | T51: 0
C52: 46 | E52: PL | F52: 8561164306 | G52: AZ.pl Sp. z o.o. | I52: 2024/0022237 | J52: 2024-07-26 | K52: 2024-07-29 | L52: 0 | M52: 0 | N52: 511 | O52: 117.53 | P52: 0 | Q52: 0 | R52: 0 | S52: 0 | T52: 0
C53: 47 | E53: PL | F53: 8561164306 | G53: AZ.pl Sp. z o.o. | I53: 2024/0022236 | J53: 2024-07-26 | K53: 2024-07-29 | L53: 0 | M53: 0 | N53: 41 | O53: 9.43 | P53: 0 | Q53: 0 | R53: 0 | S53: 0 | T53: 0
C54: 48 | E54: PL | F54: 6762474254 | G54: LUXURY GOODS.PL S.C. | I54: 10330/MAG/07/202 | J54: 2024-07-24 | K54: 2024-07-30 | L54: 0 | M54: 0 | N54: 138.2 | O54: 31.79 | P54: 0 | Q54: 0 | R54: 0 | S54: 0 | T54: 0
C55: 49 | E55: PL | F55: 9521490371 | G55: Interstrefa Grzegorz Zdzieborski | I55: 1/07/2024 | J55: 2024-07-31 | K55: 2024-07-31 | L55: 0 | M55: 0 | N55: 12600 | O55: 2898 | P55: 0 | Q55: 0 | R55: 0 | S55: 0 | T55: 0
C56: 50 | E56: PL | F56: 6751377004 | G56: KINGDOM CONSULTING | I56: 7/2024 | J56: 2024-06-30 | K56: 2024-07-31 | L56: 0 | M56: 0 | N56: 7155.15 | O56: 1645.68 | P56: 0 | Q56: 0 | R56: 0 | S56: 0 | T56: 0
C57: 51 | E57: PL | F57: 8392473400 | G57: ITBCG BARTOSZ MAREK KOCHANOWSKI | I57: 1/07/2024 | J57: 2024-07-31 | K57: 2024-07-31 | L57: 0 | M57: 0 | N57: 3000 | O57: 345 | P57: 0 | Q57: 0 | R57: 0 | S57: 0 | T57: 0
C58: 52 | E58: PL | F58: 5242902826 | G58: Virtual Vortex Solutions | I58: 00002/07/2024 | J58: 2024-07-31 | K58: 2024-07-31 | L58: 0 | M58: 0 | N58: 10004.8 | O58: 2301.1 | P58: 0 | Q58: 0 | R58: 0 | S58: 0 | T58: 0
C59: 53 | E59: PL | F59: 5242148163 | G59: KT Solutions Marcin Kreczko | I59: 4/07/2024 | J59: 2024-07-31 | K59: 2024-07-31 | L59: 0 | M59: 0 | N59: 11000 | O59: 2530 | P59: 0 | Q59: 0 | R59: 0 | S59: 0 | T59: 0
C60: 54 | E60: DE | F60: 233196983 | G60: Rhenus Assets & Services | I60: 9200252270 | J60: 2024-07-31 | K60: 2024-07-31 | L60: 0 | M60: 0 | N60: 871.3 | O60: 200.39 | P60: 0 | Q60: 0 | R60: 0 | S60: 0 | T60: 0
C61: 55 | E61: PL | F61: 5213114842 | G61: Rhenus Office Systems Poland | I61: FV2426197 | J61: 2024-07-31 | K61: 2024-07-31 | L61: 0 | M61: 0 | N61: 1772.68 | O61: 407.72 | P61: 0 | Q61: 0 | R61: 0 | S61: 0 | T61: 0
C62: 56 | E62: DE | F62: 233196983 | G62: Rhenus Assets & Services | I62: 9200252752 | J62: 2024-07-31 | K62: 2024-07-31 | L62: 0 | M62: 0 | N62: 2820.44 | O62: 648.72 | P62: 0 | Q62: 0 | R62: 0 | S62: 0 | T62: 0
C63: 57 | E63: PL | F63: 5213114842 | G63: Rhenus Office Systems Poland | I63: FV2425890 | J63: 2024-07-31 | K63: 2024-07-31 | L63: 0 | M63: 0 | N63: 663.98 | O63: 53.12 | P63: 0 | Q63: 0 | R63: 0 | S63: 0 | T63: 0
C64: 58 | E64: PL | F64: 5213114842 | G64: Rhenus Office Systems Poland | I64: FV2425890 | J64: 2024-07-31 | K64: 2024-07-31 | L64: 0 | M64: 0 | N64: -663.98 | O64: -53.12 | P64: 0 | Q64: 0 | R64: 0 | S64: 0 | T64: 0
C65: 59 | E65: PL | F65: 5213114842 | G65: Rhenus Office Systems Poland | I65: FV2425889 | J65: 2024-07-31 | K65: 2024-07-31 | L65: 0 | M65: 0 | N65: 57200 | O65: 13156 | P65: 0 | Q65: 0 | R65: 0 | S65: 0 | T65: 0
C66: 60 | E66: PL | F66: 5213114842 | G66: Rhenus Office Systems Poland | I66: FV2415889 | J66: 2024-07-31 | K66: 2024-07-31 | L66: 0 | M66: 0 | N66: 57200 | O66: 13156 | P66: 0 | Q66: 0 | R66: 0 | S66: 0 | T66: 0
C67: 61 | E67: RO | F67: 34737997 | G67: UiPath SRL | I67: UIP-RO-80745 | J67: 2024-07-15 | K67: 2024-07-31 | L67: 0 | M67: 0 | N67: 36741.25 | O67: 8450.49 | P67: 0 | Q67: 0 | R67: 0 | S67: 0 | T67: 0
C68: 62 | E68: RO | F68: 34737997 | G68: UiPath SRL | I68: UIP-RO-80699 | J68: 2024-07-12 | K68: 2024-07-31 | L68: 0 | M68: 0 | N68: 56711.2 | O68: 13043.58 | P68: 0 | Q68: 0 | R68: 0 | S68: 0 | T68: 0
C69: 63 | E69: PL | F69: 9512358749 | G69: Kancelaria Notarialna | I69: 11/04/24 | J69: 2024-04-05 | K69: 2024-07-10 | L69: 0 | M69: 0 | N69: 2400 | O69: 552 | P69: 0 | Q69: 0 | R69: 0 | S69: 0 | T69: 0

Sheet VAT-7
H2: ="Niniejsza deklaracja stanowi część pliku " & 'JPK-Nagłówek'!H1 -> Niniejsza deklaracja stanowi część pliku JPK_V7M (2)
B4: 1. Identyfikator podatkowy NIP podatnika | L4: Miejsce na wpisanie numeru UPO (opcjonalne, tylko dla wydruku):
E5: =IF(NIP="","",NIP*1) -> 7011174664
B6: VAT-7 | F6: DEKLARACJA DLA PODATKU OD TOWARÓW I USŁUG
G7: za | H7: 4. Miesiąc | I7: 5. Rok
H8: =IF(Miesiac="","",Miesiac) -> 7 | I8: =IF(Rok="","",Rok) -> 2024 | L8: =IF(RodzajDokumentu = 3," ---- DEKLARACJA JEST POMINIĘTA W TEJ KOREKCIE -----","") -> 
B10: Uwaga: przedstawiony poniżej podział na sekcje A..G jest oparty na ostatnim opublikowanym przez MF formularzu VAT-7 (20). Jest to podział wyłącznie poglądowy, gdyż w strukturze pliku JPK ta deklaracja nie jest dzielona na jakiekolwiek sekcje. Zawartość sekcji A i B jest odzwierciedleniem danych wprowadzonych w arkuszu "JPK-Nagłówek". Zawartość sekcji C to podsumowanie danych z arkusza "JPK-Sprzedaż", a sekcji D - arkusza "JPK-Zakup".
B13: A. MIEJSCE I CEL SKŁADANIA DEKLARACJI
D14: 6. Kod urzędu skarbowego, do którego adresowana jest deklaracja: | L14: 7. Cel złożenia deklaracji:
E15: =KodUrzedu -> 1433 | M15: 1. złożenie deklaracji | Q15: 2. korekta deklaracji
J16: =(TypPodatnika = 2) -> TRUE | K16: =(TypPodatnika = 1) -> FALSE | M16: =(CelZlozenia=1) -> TRUE | Q16: =(CelZlozenia<>1) -> FALSE
B17: B. DANE IDENTYFIKACYJNE PODATNIKA
D19: 8. Rodzaj podatnika:
G20: 1. podatnik niebędący osobą fizyczną | N20: 2. osoba fizyczna
D21: =" 9. " & IF(TypPodatnika = 2, "Nazwa pełna","Nazwisko, pierwsze imię, data urodzenia") & ":" -> 9. Nazwa pełna:
D23: =IF(TypPodatnika = 2, IF(PelnaNazwa = "", "", PelnaNazwa), IF(Nazwisko = "","",Nazwisko & ", " & ImiePierwsze & ", " & TEXT(DataUrodzenia,"rrrr-MM-dd"))) -> Rhenus Digital Workforce Sp. zo.o.
D24: 9. Nazwa pełna | P24: REGON
D26: 9. Nazwisko | K26: Pierwsze imię | P26: Data urodzenia (ddmmrrrr)
B33: C. ROZLICZENIE PODATKU NALEŻNEGO
K34: Podstawa opodatkowania w zł | O34: Podatek należny w zł
D36: 1. Dostawa towarów oraz świadczenie usług na terytorium kraju, | K36: 10.
D37: zwolnione od podatku | K37: =+ROUND(S_10,) -> 0
D38: 2. Dostawa towarów oraz świadczenie usług poza terytorium | K38: 11.
D39: kraju | K39: =+ROUND(S_11,) -> 213136
E40: 2a. w tym świadczenie usług, o których mowa w art. 100 | K40: 12.
E41: ust. 1 pkt 4 ustawy | K41: =+ROUND(S_12,) -> 182224
D42: 3. Dostawa towarów oraz świadczenie usług na terytorium kraju, | K42: 13.
D43: opodatkowane stawką 0% | K43: =+ROUND(S_13,) -> 0
E44: 3a. w tym dostawa towarów, o której mowa w art. 129 | K44: 14.
E45: ustawy | K45: =+ROUND(S_14,) -> 0
D46: 4. Dostawa towarów oraz świadczenie usług na terytorium kraju, | K46: 15. | O46: 16.
D47: opodatkowane stawką 5%, oraz korekty dokonanej zgodnie z art. 89a ust. 1 i 4 ustawy | K47: =+ROUND(S_15,) -> 0 | O47: =+ROUND(S_16,) -> 0
D48: 5. Dostawa towarów oraz świadczenie usług na terytorium kraju, | K48: 17. | O48: 18.
D49: opodatkowane stawką 7% albo 8%, oraz korekty dokonanej zgodnie z art. 89a ust. 1 i 4 ustawy | K49: =+ROUND(S_17,) -> 0 | O49: =+ROUND(S_18,) -> 0
D50: 6. Dostawa towarów oraz świadczenie usług na terytorium kraju, | K50: 19. | O50: 20.
D51: opodatkowane stawką 22% albo 23%, oraz korekty dokonanej zgodnie z art. 89a ust. 1 i 4 ustawy | K51: =+ROUND(S_19,) -> 696232 | O51: =+ROUND(S_20,) -> 160133
D52: 7. Wewnątrzwspólnotowa dostawa towarów | K52: 21.
K53: =+ROUND(S_21,) -> 0
D54: 8. Eksport towarów | K54: 22.
K55: =+ROUND(S_22,) -> 0
D56: 9. Wewnątrzwspólnotowe nabycie towarów | K56: 23. | O56: 24.
K57: =+ROUND(S_23,) -> 0 | O57: =+ROUND(S_24,) -> 0
D58: 10. Import towarów podlegający rozliczeniu zgodnie z art. 33a | K58: 25. | O58: 26.
D59: ustawy | K59: =+ROUND(S_25,) -> 0 | O59: =+ROUND(S_26,) -> 0
D60: 11. Import usług z wyłączeniem usług nabywanych od | K60: 27. | O60: 28.
D61: podatników podatku od wartości dodanej, do których stosuje się art. 28b ustawy | K61: =+ROUND(S_27,) -> 1215 | O61: =+ROUND(S_28,) -> 279
D62: 12. Import usług nabywanych od podatników podatku od | K62: 29. | O62: 30.
D63: wartości dodanej, do których stosuje się art. 28b ustawy | K63: =+ROUND(S_29,) -> 97396 | O63: =+ROUND(S_30,) -> 22401
D64: 13. Dostawa towarów, dla których podatnikiem jest nabywca | K64: 31. | O64: 32.
D65: zgodnie z art. 17 ust. 1 pkt 5 ustawy | K65: =+ROUND(S_31,) -> 0 | O65: =+ROUND(S_32,) -> 0
D66: 14. Kwota podatku należnego od towarów i usług objętych spisem z natury, o którym mowa w art. 14 ust. 5 | O66: 33.
D67: ustawy | O67: =+ROUND(S_33,) -> 0
D68: 15. Zwrot odliczonej lub zwróconej kwoty wydatkowanej na zakup kas rejestrujących, o którym mowa w art. 111 | O68: 34.
D69: ust. 6 ustawy | O69: =+ROUND(S_34,) -> 0
D70: 16. Kwota podatku należnego od wewnątrzwspólnotowego nabycia środków transportu, wykazanego w poz. 24, | O70: 35.
D71: podlegająca wpłacie w terminie, o którym mowa w art. 103 ust. 3, w związku z ust. 4 ustawy | O71: =+ROUND(S_35,) -> 0
D72: 17. Wysokość podatku od wewnątrzwspólnotowego nabycia towarów, o których mowa w art. 103 ust. 5aa, | O72: 36.
D73: podlegająca wpłacie w terminach, o których mowa w art. 103 ust. 5a i 5b ustawy | O73: =+ROUND(S_36,) -> 0
D74: Razem: (Poz. 37 = suma kwot z poz. 10, 11, 13, 15, 17, 19, 21, 22, 23, | K74: 37 | O74: 38.
D75: 25, 27, 29 i 31. Poz. 38 = suma kwot z poz. 16, 18, 20, 24, 26, 28, 30, | K75: =SUM(P_10, P_11, P_13, P_15, P_17, P_19, P_21, P_22, P_23, P_25, P_27, P_29, P_31) -> 1007979 | O75: =SUM(P_16, P_18, P_20, P_24, P_26, P_28, P_30, P_32, P_33, P_34) - (P_35 + P_36)+0.000000000001 -> 182813
D76: 32, 33 i 34, pomniejszona o kwoty z poz. 35 i 36)
Q78: VAT-7(22) | S78: 1/3
H81: =$H$2 -> Niniejsza deklaracja stanowi część pliku JPK_V7M (2)
B83: D. ROZLICZENIE PODATKU NALICZONEGO
B84: D.1. PRZENIESIENIA | O84: Podatek do odliczenia w zł
D85: Kwota nadwyżki z poprzedniej deklaracji | O85: 39.
D86: Kwota z poz. „Kwota do przeniesienia na następny okres rozliczeniowy” z poprzedniej deklaracji lub wynikająca z decyzji. | O86: 0
B87: D.2. NABYCIE TOWARÓW I USŁUG ORAZ PODATEK NALICZONY Z UWZGLĘDNIENIEM KOREKT
K88: Wartość netto w zł | O88: Podatek naliczony w zł
C89: Nabycie towarów i usług zaliczanych u podatnika do środków | K89: 40. | O89: 41.
C90: trwałych | K90: =+ROUND(Z_40,) -> 0 | O90: =+ROUND(Z_41,) -> 0
C91: Nabycie towarów i usług pozostałych | K91: 42. | O91: 43.
K92: =+ROUND(Z_42,) -> 479216 | O92: =+ROUND(Z_43,) -> 109012
B93: D.3. PODATEK NALICZONY – DO ODLICZENIA (w zł)
C94: Korekta podatku naliczonego od nabycia środków trwałych | O94: 44.
O95: =+ROUND(Z_44,) -> 0
C96: Korekta podatku naliczonego od pozostałych nabyć | O96: 45.
O97: =+ROUND(Z_45,) -> 0
C98: Korekta podatku naliczonego, o której mowa w art. 89b ust. 1 ustawy (kwota ujemna) | O98: 46.
O99: =+ROUND(Z_46,) -> 0
C100: Korekta podatku naliczonego, o której mowa w art. 89b ust. 4 ustawy | O100: 47.
O101: =+ROUND(Z_47,) -> 0
C102: Razem kwota podatku naliczonego do odliczenia. (Suma kwot z pozycji 39, 41, 43, 44, 45, 46 i 47) | O102: 48.
C103: Należy wpisać sumę kwot z poz. 42, 44, 46, 47, 48, 49 i 50. | O103: =SUM(P_39, P_41, P_43, P_44, P_45, P_46, P_47) -> 109012
B105: E. OBLICZENIE WYSOKOŚCI ZOBOWIĄZANIA PODATKOWEGO LUB KWOTY ZWROTU (w zł)
C106: Kwota wydana na zakup kas rejestrujących, do odliczenia w danym okresie rozliczeniowym Kwota ta nie może być wyższa od różnicy kwot z pozycji 38 i 48. Jeżeli różnica kwot pomiędzy poz. 38 i poz. 48 jest mniejsza lub równa 0, wówczas należy wykazać 0. | O106: 49.
C107: Kwota wykazana w poz. 52 nie może być wyższa od różnicy kwot z poz. 41 i 51. Jeżeli różnica kwot pomiędzy poz. 41 i 51 jest mniejsza lub równa 0, wówczas należy wpisać 0. | O107: 0 | T107: -1
C108: Kwota podatku objęta zaniechaniem poboru | O108: 50.
C109: Nie może być wyższa niż różnica pomiędzy kwotą z pozycji 38 a sumą kwot z pozycji 48 i 49. Jeżeli różnica kwot pomiędzy poz. 38 i poz. 48, pomniejszona o kwotę z poz. 49 jest mniejsza od 0, wówczas należy wykazać 0. | O109: 0 | T109: -1
C110: Kwota podatku podlegającego wpłacie do urzędu skarbowego | O110: 51. | U110: 0
C111: Jeżeli różnica kwot pomiędzy poz. 38 i poz. 48 jest większa od 0, wówczas poz. 51 = poz. 38 - poz. 48 - poz. 49 - poz. 50, | O111: =IF(P_38>P_48,P_38-P_48-P_49-P_50,0.0000000001) -> 73801
C112: w przeciwnym wypadku należy wpisać 0.
C113: Kwota wydana na zakup kas rejestrujących, do odliczenia w danym okresie rozliczeniowym | O113: 52.
C114: przysługująca do zwrotu w danym okresie rozliczeniowym lub powiększająca wysokość podatku naliczonego do przeniesienia na następny okres rozliczeniowy | O114: 0
C115: Wysokość nadwyżki podatku naliczonego nad należnym | O115: 53.
C116: Jeżeli P_51 > 0 to P_53 = 0 w przeciwnym wypadku jeżeli (P_48 + P_49 + P_50 + P_52) – P_38 > 0 | O116: =IF(P_51>0.000001,0,IF((P_48 + P_49 + P_50 + P_52 - P_38) > 0,P_48-P_38+P_49+P_50+P_52,0)) -> 0
C117: to P_53 = P_48 - P_38 + P_49 + P_50 + P_52 w pozostałych przypadkach P_53 = 0.
D118: Wysokość nadwyżki podatku naliczonego nad należnym do zwrotu na rachunek wskazany przez podatnika | O118: 54.
E120: Zaznacz jeden z podanych kwadratów: | F120: 55.
F122: na rachunek rozliczeniowy, w terminie: | H122: 540. | J122: 56. | M122: 560. | O122: 57. | R122: 58.
E125: 59. Zaliczenie zwrotu podatku na poczet przyszłych zobowiązań podatkowych
F126: Podatnik wnosi o zaliczenie zwrotu podatku na poczet przyszłych zobowiązań podatkowych, zgodnie z art. 76 § 1 i art. 76b § 1 ustawy z dnia 29 sierpnia 1997 r. - Ordynacja podatkowa (Dz. U. z 2021 r. poz. 1540, z późn. zm.), wraz z podaniem wysokości zaliczenia oraz rodzaju zobowiązania podatkowego:
E127: Wysokość zwrotu do zaliczenia na poczet przyszłych zobowiązań podatkowych: | O127: 60.
E129: Rodzaj przyszłego zobowiązania podatkowego: | J129: 61.
D132: Kwota do przeniesienia na następny okres rozliczeniowy | O132: 62.
D133: Od kwoty z poz. 53 należy odjąć kwotę z poz. 54. | O133: =P_53 - P_54 -> 0
I135: FALSE | L135: FALSE | O135: FALSE
B136: F. INFORMACJE DODATKOWE
C137: Podatnik wykonywał w okresie | G137: 63. | J137: 64. | M137: 65. | Q137: 66.
C138: rozliczeniowym czynności, o których
C139: mowa w (zaznaczyć właściwe kwadraty):
C140: 660. | L140: 67.
B143: G. INFORMACJA O KOREKCIE DEKLARACJI
C145: Wysokość korekty podstawy opodatkowania, o której mowa w art. 89a ust. 1 ustawy | O145: 68.
C146: Kwota wykazana w poz. 52 nie może być wyższa od różnicy kwot z poz. 41 i 51. Jeżeli różnica kwot pomiędzy poz. 41 i 51 jest mniejsza lub równa 0, wówczas należy wpisać 0. | O146: 0 | T146: -1
C147: Wysokość korekty podatku należnego, o której mowa w art. 89a ust. 1 ustawy | O147: 69.
C148: Kwota ta nie może być wyższa niż różnica pomiędzy kwotą z poz. 41 a sumą kwot z poz. 51 i 52. Jeżeli różnica kwot pomiędzy poz. 41 i 51, pomniejszona o kwotę z poz. 52 jest mniejsza od 0, wówczas należy wpisać 0. | O148: 0 | T148: -1
C149: 70. Uzasadnienie przyczyn złożenia korekty:
B152: VAT-7(22) | F152: 2/3
H154: =$H$2 -> Niniejsza deklaracja stanowi część pliku JPK_V7M (2)
B155: POUCZENIA: | F155: 1
B156: W przypadku niewpłacenia w obowiązującym terminie podatku podlegającego wpłacie do urzędu skarbowego lub wpłacenia go w niepełnej wysokości niniejsza deklaracja stanowi podstawę do wystawienia tytułu wykonawczego zgodnie z przepisami o postępowaniu egzekucyjnym w administracji. Za podanie nieprawdy lub zatajenie prawdy i przez to narażenie podatku na uszczuplenie grozi odpowiedzialność przewidziana w przepisach Kodeksu karnego skarbowego.
Q178: VAT-7(22) | S178: 3/3

Sheet JPK - uzgodnienie z VAT-7 (hidden)
A1: ROZLICZENIE PODATKU NALEŻNEGO
B2: Podstawa opodatkowania w zł | C2: Podatek należny w zł
A3: 1. Dostawa towarów oraz świadczenie usług, na terotyrium kraju, zwolnione od podatku | B3: =+ROUND('JPK-Sprzedaż'!L5,) -> 0
A4: 2. Dostawa towarów oraz świadczenie usług poza terytorium kraju | B4: =+ROUND('JPK-Sprzedaż'!M5,) -> 213136
A5: 2a. w tym świadczenie usług, o których mowa w art. 100 ust. 1 pkt. 4 | B5: =+ROUND('JPK-Sprzedaż'!N5,) -> 182224
A6: 3. Dostawa towarów oraz świadczenie usług, na terytorium kraju, opodatkowane stawką 0% | B6: =+ROUND('JPK-Sprzedaż'!O5,) -> 0
A7: 3a. w tym dostawa towarów, o której mowa w art. 129 ustawy | B7: =+ROUND('JPK-Sprzedaż'!P5,) -> 0
A8: 4. Dostawa towarów oraz świadczenie usług, na terytorium kraju, opodatkowane stawką 5% | B8: =+ROUND('JPK-Sprzedaż'!Q5,) -> 0 | C8: =+ROUND('JPK-Sprzedaż'!R5,) -> 0
A9: 5. Dostawa towarów oraz świadczenie usług, na terytorium kraju, opodatkowane stawką 7% albo 8% | B9: =+ROUND('JPK-Sprzedaż'!S5,) -> 0 | C9: =+ROUND('JPK-Sprzedaż'!T5,) -> 0
A10: 6. Dostawa towarów oraz świadczenie usług, na terytorium kraju, opodatkowane stawką 22% albo 23% | B10: =+ROUND('JPK-Sprzedaż'!U5,) -> 696232 | C10: =+ROUND('JPK-Sprzedaż'!V5,0) -> 160133
A11: 7. Wewnątrzwspólnotowa dostawa towarów | B11: =+ROUND('JPK-Sprzedaż'!W5,) -> 0
A12: 8. Eksport towarów | B12: =+ROUND('JPK-Sprzedaż'!X5,) -> 0
A13: 9. Wewnątrzwspólnotowe nabycie towarów | B13: =+ROUND('JPK-Sprzedaż'!Y5,) -> 0 | C13: =+ROUND('JPK-Sprzedaż'!Z5,) -> 0
A14: 10. Import towarów podlegający rozliczeniu zgodnie z art. 33a ustawy | B14: =+ROUND('JPK-Sprzedaż'!AA5,) -> 0 | C14: =+ROUND('JPK-Sprzedaż'!AB5,) -> 0
A15: 11. Import usług z wyłączeniem usług nabywanych od podatników podatku od wartości dodanej, do których stosuje się art.. 28b | B15: =+ROUND('JPK-Sprzedaż'!AC5,) -> 1215 | C15: =+ROUND('JPK-Sprzedaż'!AD5,) -> 279
A16: 12. Import usług nabywanych od podatników podatku od wartości dodanej, do których stosuje się art. 28b | B16: =+ROUND('JPK-Sprzedaż'!AE5,) -> 97396 | C16: =+ROUND('JPK-Sprzedaż'!AF5,) -> 22401
A17: 13. Dostawa towarów oraz świadczenie usług, dla których podatnkikiem jest nabywca zgodnie z art. 17 ust. 1 pkt 7 lub 8 (wypełnia dostawca) | B17: =+ROUND('JPK-Sprzedaż'!AG5,) -> 0
A18: 14. Dostawa towarów, dla których podatnikiem jest nabywca zgodnie z art. 17 ust. 1 pkt 5 (wypełnia nabywca) | B18: =+ROUND('JPK-Sprzedaż'!AH5,) -> 0 | C18: =+ROUND('JPK-Sprzedaż'!AI5,) -> 0
A19: 15. Dostawa towarów oraz świadczenie usług, dla których podatnikiem jest nabywca zgodnie z art. 17 ust. 1 pkt 7 lub 8 (wypełnia nabywca) | B19: =+ROUND('JPK-Sprzedaż'!AJ5,) -> 0 | C19: =+ROUND('JPK-Sprzedaż'!AK5,) -> 0
A20: 16. Kwota podatku należnego od towarów i usług objętych spisem z natury, o których mowa w art. 14 ust. 5 | C20: =+ROUND('JPK-Sprzedaż'!AL5,) -> 0
A21: 17. Zwrot odliczonej lub zwróconej kwoty wydatkowanej na zakup kas rejestrujących, o których mowa w art.. 111 ust. 6 | C21: =+ROUND('JPK-Sprzedaż'!#REF!,) -> 
A22: 18. Kwota podatku należnego od wewnątrzwspólnotowego nabycia środków transportu, wykazanego w poz. 24, podlegająca wpłacie w terminie, o którym mowa w art. 103 ust. 3, w związku z ust. 4 | C22: =+ROUND('JPK-Sprzedaż'!#REF!,) -> 
A23: 19. Kwota podatku od wewnątrzwspólnotowego nabycia paliw silnikowych, podlegająca wpłacie w terminach, o których mowa w art. 103 ust. 5a i 5b | C23: =+ROUND('JPK-Sprzedaż'!AM5,) -> 0
B26: =+B3+B4+B6+B8+B9+B10+B11+B12+B13+B14+B15+B16+B17+B18+B19 -> 1007979 | C26: =+C8+C9+C10+C13+C14+C15+C16+C18+C19+C20-C21-C22-C23 -> 
A29: ROZLICZENIE PODATKU NALICZONEGO
A31: 1. PRZENIESIENIA | C31: Podatek do odliczenia w zł
A32: Kwota nadwyżki z poprzedniej deklaracji
A35: 2. NABYCIE TOWARÓW I USŁUG ORAZ PODATEK NALICZONY Z UWZGLĘDNIENIEM KOREKT
B37: Wartość netto w zł | C37: Podatek naliczony w zł
A38: Nabycie towarów i usług zaliczanych u podatnika do środków trwałych | B38: =+ROUND('JPK-Zakup'!L5,) -> 0 | C38: =+ROUND('JPK-Zakup'!M5,) -> 0
A39: Nabycie towarów i usług pozostałych | B39: =+ROUND('JPK-Zakup'!N5,) -> 479216 | C39: =+ROUND('JPK-Zakup'!O5,) -> 109012
A41: 3. PODATEK NALICZONY - DO ODLICZENIA W ZŁ
A42: Korekta podatku naliczonego od nabycia środków trwałych | C42: =+ROUND('JPK-Zakup'!P5,) -> 0
A43: Korekta podatku naliczonego od pozostałych nabyć | C43: =+ROUND('JPK-Zakup'!Q5,) -> 0
A44: Korekta podatku naliczonego, o której mowa w art. 89b ust. 1 ustawy | C44: =+ROUND('JPK-Zakup'!R5,) -> 0
A45: Razem kwota podatku naliczonego do odliczenia | C45: =+C32+C38+C39+C42+C43+C44 -> 109012
A48: OBLICZENIE WYSOKOŚCI ZOBOWIĄZANIA PODATKOWEGO LUB KWOTY DO ZWROTU (w zł)
A49: Kwota wydatkowana na zakup kas rejestrujących
A50: Kwota podatku objęta zaniechaniem poboru
A51: Kwota podatku podlegającego wpłacie do Urzędu Skarbowego | C51: =IF(C26>C45,C26-C45-C49-C50,0) -> 
A52: Kwota wydatkowana na zakup kas rejestrujących, przysługująca do zwrotu w danym okresie rozliczeniowym
A53: Nadwyżka podatku naliczonego nad należnym | C53: =IF(C45-C26>=0,C45-C26+C52,0) -> 

Sheet Parametry (hidden)
B2: Rozszerzenie pliku importu:
B5: Arkusz | C5: Komponent obsługujący import
B6: JPK-Sprzedaż | C6: brak
B7: JPK-Zakup | C7: brak
B10: Sprawdzanie merytoryczne | C10: tak

Sheet techniczne (hidden)
O2: Elementy list | P2: Numery automat: | Q2: Nr obowiązkowej kolumny
O3: SprzedazWiersz | P3: LpSprzedazy | Q3: 4
O4: ZakupWiersz | P4: LpZakupu | Q4: 4
O6: XED | P6: #4538
O7: XSD: | P7: http://crd.gov.pl/wzor/2021/12/27/11148/schemat.xsd
O8: Namespace: | P8: http://crd.gov.pl/wzor/2021/12/27/11148/
O9: AlternateImports | P9: http://crd.gov.pl/wzor/2021/07/08/07081/;http://crd.gov.pl/wzor/2020/05/08/9393/;http://crd.gov.pl/wzor/2020/03/06/9196/;http://jpk.mf.gov.pl/wzor/2019/11/06/11061/;http://crd.gov.pl/wzor/2020/02/25/9142/;http://jpk.mf.gov.pl/wzor/2016/10/26/10261/;http://jpk.mf.gov.pl/wzor/2017/11/13/1113/
O10: ZeroToEmpty | P10: TRUE
O11: ZeroFollowsFields: | P11: K_16,K_18,K_20,K_24,K_26,K_28,K_30,K_33,K_35,K_41,K_43,P_16,P_18,P_20,P_24,P_26,P_28,P_30,P_32,P_34,P_36,P_38,P_41,P_43,P_54
O13: Dodatkowe testy merytoryczne podczas Importu i dopisywania (Append):
O15: Sprawdź podczas importu | P15: Sprawdź podczas dołączania | Q15: Wykonać przed walidacją XSD? | R15: Węzeł z porównywaną wartością (wyrażenie Xpath) (uruchamiane dla DocumentNode) | S15: Oczekiwana wartość | T15: Komunikat o ewentualnym błędzie (Wpisz {Val} tam, gdzie ma być podstawiona wartość z importowanego dokumentu)
O16: =TRUE -> TRUE | P16: =TRUE -> TRUE | Q16: =TRUE -> TRUE | R16: jpk:Naglowek/jpk:KodFormularza | S16: JPK_VAT | T16: ="Niewłaściwy typ pliku JPK ({Val}), podczas gdy powinien to być 'JPK_V7M'. Może próbujesz wczytać starszą wersję pliku JPK_VAT? Ten stary format zawiera inne pola, i taka operacja jest niemożliwa" -> Niewłaściwy typ pliku JPK ({Val}), podczas gdy powinien to być 'JPK_V7M'. Może próbujesz wczytać starszą wersję pliku JPK_VAT? Ten stary format zawiera inne pola, i taka operacja jest niemożliwa
O17: =FALSE -> FALSE | P17: =TRUE -> TRUE | Q17: =FALSE -> FALSE | R17: //jpk:Rok | S17: =Rok -> 2024 | T17: ="Plik dotyczy innego roku ({Val}) niż aktualnie wczytane dane (" &S17 & ")" -> Plik dotyczy innego roku ({Val}) niż aktualnie wczytane dane (2024)
O18: =FALSE -> FALSE | P18: =TRUE -> TRUE | Q18: =FALSE -> FALSE | R18: //jpk:Miesiac | S18: =Miesiac -> 7 | T18: ="Plik dotyczy innego miesiąca ({Val}) niż aktualnie wczytane dane (" &S18 & ")" -> Plik dotyczy innego miesiąca ({Val}) niż aktualnie wczytane dane (7)
O19: =FALSE -> FALSE | P19: =TRUE -> TRUE | Q19: =FALSE -> FALSE | R19: //*[local-name()='NIP'] | S19: =NIP -> 7011174664 | T19: ="Plik dotyczy przedsiębiorstwa o innym NIP ({Val}) niż dotychczas wczytane dane (dla przedsiębiorstwa o NIP: " &S19 & ")" -> Plik dotyczy przedsiębiorstwa o innym NIP ({Val}) niż dotychczas wczytane dane (dla przedsiębiorstwa o NIP: 7011174664)
O20: =TRUE -> TRUE | P20: =TRUE -> TRUE | Q20: =FALSE -> FALSE | R20: //jpk:ZakupCtrl | S20: exists | T20: Wskazany plik najprawdopodobniej zawiera korektę samej deklaracji. Niestety, z powodu ograniczeń technicznych ten skoroszyt nie wyświetli poprawnie zawartości takiej cząstkowej korekty. Dlatego jako podstawę do tworzenia kolejnych korekt samych deklaracji sugerujemy wykorzystywać kompletne pliki JPK_V7, zawierające także część ewidencyjną. (Może to być np. pierwsza wersja JPK_V7 za ten miesiąc).
O22: Nazwa skoroszytu: | Q22: JPK_V7M
O23: Numer seryjny: | Q23: dw.rhenus.com
O24: Numer edycji: | Q24: 1.82
O25: Wygenerowano: | Q25: 2024-04-11T19:43:23
O27: Komunikaty w oknach dialogowych | Q27: 00
C70: Pola list wybieralnych:
C71: 1 | D71: Osoba fizyczna
C72: 2 | D72: Podatnik niebędący osobą fizyczną
C74: 1 | D74: złożenie po raz pierwszy
C75: 2 | D75: korekta ewidencji i deklaracji
C76: 3 | D76: korekta samej ewidencji
C77: 4 | D77: korekta samej deklaracji
C85: Arkusze transformacji:
A87: XsltInput: | C87: (tworzy pasujące do list pola <TypDokumentu> i <TypKontrahenta>)
C88: <xsl:stylesheet version="1.0" xmlns:xsl="http://www.w3.org/1999/XSL/Transform" xmlns="http://crd.gov.pl/wzor/2021/12/27/11148/" xmlns:jpk="http://crd.gov.pl/wzor/2021/12/27/11148/" xmlns:vat3="http://jpk.mf.gov.pl/wzor/2017/11/13/1113/" > <xsl:output method='xml' indent="yes" encoding="UTF-8"/> <!-- basic: identity copy: --> <xsl:template match="@*|node()"> <xsl:copy><xsl:apply-templates select="@*|node()"/></xsl:copy> </xsl:template> <!-- Zamiana "CelZozenia" na precyzyjniejszy "TypDokumentu" i dodatkowy "TypPodatnika" (spoza schematu, dla list wuboru z Excela) : --> <xsl:template match="jpk:CelZlozenia"> <RodzajDokumentu> <xsl:choose> <xsl:when test="//jpk:CelZlozenia = 1">1</xsl:when> <!-- złożenie po raz pierwszy --> <xsl:otherwise> <xsl:choose> <xsl:when test="not (//jpk:Deklaracja)">3</xsl:when> <!-- korekta samej ewidencji --> <xsl:when test="not (//jpk:SprzedazWiersz or //ZakupWiersz)">4</xsl:when> <!-- korekta samej deklaracji --> <xsl:otherwise>2</xsl:otherwise> <!-- korekta ewidencji i deklaracji --> </xsl:choose> </xsl:otherwise> </xsl:choose> </RodzajDokumentu> <TypPodatnika> <xsl:choose> <xsl:when test="//jpk:OsobaFizyczna">1</xsl:when> <xsl:otherwise>2</xsl:otherwise> </xsl:choose> </TypPodatnika> </xsl:template> <!-- przesunięcie kolumn pomiędzy JPK_VAT i JPK_V7 --> <xsl:template match="vat3:DataOd"> <Rok><xsl:value-of select="substring(.,1,4)"></xsl:value-of></Rok> </xsl:template> <xsl:template match="vat3:DataDo"> <Miesiac><xsl:value-of select="substring(.,6,2)"></xsl:value-of></Miesiac> </xsl:template> <xsl:template match="vat3:K_31"/> <xsl:template match="vat3:K_32"> <K_31><xsl:value-of select="."></xsl:value-of></K_31> </xsl:template> <xsl:template match="vat3:K_33"> <K_32><xsl:value-of select="."></xsl:value-of></K_32> </xsl:template> <xsl:template match="vat3:K_34"/> <xsl:template match="vat3:K_35"/> <xsl:template match="vat3:K_36"> <K_33><xsl:value-of select="."></xsl:value-of></K_33> </xsl:template> <xsl:template match="vat3:K_37"> <K_34><xsl:value-of select="."></xsl:value-of></K_34> </xsl:template> <xsl:template match="vat3:K_38"> <K_35><xsl:value-of select="."></xsl:value-of></K_35> </xsl:template> <xsl:template match="vat3:K_39"> <K_36><xsl:value-of select="."></xsl:value-of></K_36> </xsl:template> <xsl:template match="vat3:K_43"> <K_40><xsl:value-of select="."></xsl:value-of></K_40> </xsl:template> <xsl:template match="vat3:K_44"> <K_41><xsl:value-of select="."></xsl:value-of></K_41> </xsl:template> <xsl:template match="vat3:K_45"> <K_42><xsl:value-of select="."></xsl:value-of></K_42> </xsl:template> <xsl:template match="vat3:K_46"> <K_43><xsl:value-of select="."></xsl:value-of></K_43> </xsl:template> <xsl:template match="vat3:K_47"> <K_44><xsl:value-of select="."></xsl:value-of></K_44> </xsl:template> <xsl:template match="vat3:K_48"> <K_45><xsl:value-of select="."></xsl:value-of></K_45> </xsl:template> <xsl:template match="vat3:K_49"> <K_46><xsl:value-of select="."></xsl:value-of></K_46> </xsl:template> <xsl:template match="vat3:K_50"> <K_47><xsl:value-of select="."></xsl:value-of></K_47> </xsl:template> </xsl:stylesheet>
A90: XsltOutput: | C90: (usuwa w korektach część deklaracyjną lub ewidencyjną, gdy jest to potrzebne)
C91: =IF(RodzajDokumentu<3,"",IF(RodzajDokumentu=3,D92,D93)) -> 
C92: p. 3: | D92: <xsl:stylesheet version="1.0" xmlns:xsl="http://www.w3.org/1999/XSL/Transform" xmlns="http://crd.gov.pl/wzor/2021/12/27/11148/" xmlns:jpk="http://crd.gov.pl/wzor/2021/12/27/11148/" > <xsl:output method='xml' indent="yes" encoding="UTF-8"/> <!-- basic: identity copy: --> <xsl:template match="@*|node()"> <xsl:copy><xsl:apply-templates select="@*|node()"/></xsl:copy> </xsl:template> <!-- Usuwamy część deklaracyjną: --> <xsl:template match="jpk:Deklaracja"/> </xsl:stylesheet>
C93: p. 4: | D93: <xsl:stylesheet version="1.0" xmlns:xsl="http://www.w3.org/1999/XSL/Transform" xmlns="http://crd.gov.pl/wzor/2021/12/27/11148/" xmlns:jpk="http://crd.gov.pl/wzor/2021/12/27/11148/" > <xsl:output method='xml' indent="yes" encoding="UTF-8"/> <!-- basic: identity copy: --> <xsl:template match="@*|node()"> <xsl:copy><xsl:apply-templates select="@*|node()"/></xsl:copy> </xsl:template> <!-- Usuwamy część ewidencyjną: --> <xsl:template match="jpk:Ewidencja"/> </xsl:stylesheet>
O96: Schematy, używane gdy nie można użyć wersji online z Ministerstwa Finansów:
O97: Nazwa ramki | Q97: Przestrzeń nazw
O98: UrzedySkarbowe | Q98: http://crd.gov.pl/xml/schematy/dziedzinowe/mf/2021/06/08/eD/DefinicjeTypy/
O99: KodyKrajow | Q99: =Q98 -> http://crd.gov.pl/xml/schematy/dziedzinowe/mf/2021/06/08/eD/DefinicjeTypy/
O100: ElementarneTypyDanych | Q100: =Q99 -> http://crd.gov.pl/xml/schematy/dziedzinowe/mf/2021/06/08/eD/DefinicjeTypy/
O101: StrukturyDanych | Q101: http://crd.gov.pl/xml/schematy/dziedzinowe/mf/2021/06/08/eD/DefinicjeTypy/
O102: JPK | Q102: =JPK_Namespace -> http://crd.gov.pl/wzor/2021/12/27/11148/
O104: Weryfikacja merytoryczna niektórych pól:
O105: Nazwy pól (kolumn) | Q105: Typ testu | R105: Pytanie, czy wyświetlić znalezione nieprawidłowości | T105: Wyjaśnienie, towarzyszące wyświetleniu nieprawidłowości
O106: NrKontrahenta | Q106: NIP | R106: Sprawdzanie nr NIP klientów: znaleziono {Count} nieprawidłowości. Czy chcesz je teraz przejrzeć? (Jeżeli chcesz je zignorować i kontynuować zapis do pliku JPK, wybierz [Nie]) | T106: Wiersze, które mogą zawierać błędny NIP zostały wyróżnione znakiem "X" w kolumnie "Błąd" (możesz je szybko wybrać za pomoca funkcji Filtruj). Sprawdź te numery NIP (zwróć uwagę, że mogą się powtarzać dla kolejnych faktur tego samego kontrahenta). Numery NIP polskich przedsiębiorstw muszą się składać z 10 cyfr (np. 5251469286), BEZ spacji czy kresek. Dla polskich NIP dopuszczalny jest przedrostek "PL" W przypadku detalistów/pracowników należy wpisywać w to pole słowo "brak". Gdy skończysz je przeglądać/poprawiać, kliknij powtórnie w przycisk [Zapisz jako plik JPK].
O107: K_16,K_18,K_20,K_24,K_26,K_28,K_30,K_32,K_33,K_35,K_36 | Q107: Zaokrąglenia | R107: W jednej z kolumn znaleziono {Count} pól z ułamkami groszy. Te ułamki zmieniły kwotę podatku. Czy chcesz je teraz poprawić? (Jeżeli chcesz zignorować tę nieprawidłowość i kontynuować zapis do pliku JPK, wybierz [Nie]) | T107: Wiersze, których pola zawierają ułamki groszy zostały wyróżnione znakiem "X" w kolumnie "Błąd" (możesz je szybko wybrać za pomoca funkcji Filtruj). Kwoty w tych polach są wyświetlane z dokładnością co do grosza, ale gdy zjarzysz do ich formuł, przekonasz się że zawierają więcej miejsc po przecinku. Wpisanie drobnego ułamka (0.0001) jest czasami przydatne do odnotowania w pliku JPK zerowych kwot VAT. Jednak w tym przypadku te ułamki sumują się w kwotę większą od 0.5 grosza, i powodują nieprawidłowe naliczenie sumy kontrolnej w pliku JPK. Dlatego lepiej teraz popraw te liczby, zaokrąglając je odpowiednio do pełnych groszy. Gdy skończysz nanosić te poprawki, kliknij powtórnie w przycisk [Zapisz jako plik JPK].
O108: NrDostawcy | Q108: NIP | R108: Sprawdzanie nr NIP dostawców: znaleziono {Count} nieprawidłowości. Czy chcesz je teraz przejrzeć? (Jeżeli chcesz je zignorować i kontynuować zapis do pliku JPK, wybierz [Nie]) | T108: Wiersze, które mogą zawierać błędny NIP zostały wyróżnione znakiem "X" w kolumnie "Błąd" (możesz je szybko wybrać za pomoca funkcji Filtruj). Sprawdź te numery NIP (zwróć uwagę, że mogą się powtarzać dla kolejnych faktur tego samego kontrahenta). Numery NIP polskich przedsiębiorstw muszą się składać z 10 cyfr (np. 5251469286), BEZ przedrostka "PL" i kresek. W przypadku gdy kontrahent nie ma żadnego numeru (np. dla specjalnych zapisów technicznych) należy wpisywać w to pole słowo "brak". Gdy skończysz je przeglądać/poprawiać, kliknij powtórnie w przycisk [Zapisz jako plik JPK].
O109: K_41,K_43,K_44,K_45,K_46,K_47 | Q109: Zaokrąglenia | R109: W jednej z kolumn znaleziono {Count} pól z ułamkami groszy. Te ułamki zmieniły kwotę podatku. Czy chcesz je teraz poprawić? (Jeżeli chcesz zignorować tę nieprawidłowość i kontynuować zapis do pliku JPK, wybierz [Nie]) | T109: Wiersze, których pola zawierają ułamki groszy zostały wyróżnione znakiem "X" w kolumnie "Błąd" (możesz je szybko wybrać za pomoca funkcji Filtruj). Kwoty w tych polach są wyświetlane z dokładnością co do grosza, ale gdy zjarzysz do ich formuł, przekonasz się że zawierają więcej miejsc po przecinku. Wpisanie drobnego ułamka (0.0001) jest czasami przydatne do odnotowania w pliku JPK zerowych kwot VAT. Jednak w tym przypadku te ułamki sumują się w kwotę większą od 0.5 grosza, i powodują nieprawidłowe naliczenie sumy kontrolnej w pliku JPK. Dlatego lepiej teraz popraw te liczby, zaokrąglając je odpowiednio do pełnych groszy. Gdy skończysz nanosić te poprawki, kliknij powtórnie w przycisk [Zapisz jako plik JPK].
O114: Pola do podmiamy we wzorcu dokumentu:
Q115: OsobaFizyczna: | R115: <OsobaFizyczna> <etd:NIP></etd:NIP> <etd:ImiePierwsze></etd:ImiePierwsze> <etd:Nazwisko></etd:Nazwisko> <etd:DataUrodzenia></etd:DataUrodzenia> <Email></Email> <Telefon></Telefon> <PelnaNazwa/> </OsobaFizyczna>
Q116: OsobaFizyczna: | R116: <OsobaNiefizyczna> <NIP></NIP> <PelnaNazwa></PelnaNazwa> <Email></Email> <Telefon></Telefon> <etd:ImiePierwsze/> <etd:Nazwisko/> <etd:DataUrodzenia/> </OsobaNiefizyczna>
Q117: DanePodatnika: | R117: =IF(TypPodatnika=1,techniczne!R115,techniczne!R116) -> <OsobaNiefizyczna> <NIP></NIP> <PelnaNazwa></PelnaNazwa> <Email></Email> <Telefon></Telefon> <etd:ImiePierwsze/> <etd:Nazwisko/> <etd:DataUrodzenia/> </OsobaNiefizyczna>
